Workbook

Sheet instructions
A1: Township Spreadsheet Instructions
A3: Read these instructions carefully. If after reviewing them you still have questions, call Municipal Services at 785-296-2311 or e-mail : armunis@da.ks.gov
A5: Townships can use the township.xls, township1.xls, township2 or township3.xls files. You must choose a form that meets the needs for the number of funds. If you don't need all the funds, just leave the pages blank and number the completed pages sequentially.
A7: Township.xls spreadsheet has General Fund, Debt Service, Library, Road Bridge, 4 levy fund pages, 2 no levy fund pages, and one Non-Budgeted fund page which holds 5 non- budgeted funds.
A9: When the page numbers are changed on the fund pages, the Certificate page will also be changed.
A12: Submitting the Budget
A14: Budgets are required to be sent to the County Clerk by August 25 of each year.
A16: K.S.A. 79-2926 requires budgets to be submitted by electronic means. Contact your County Clerk for the specify instruction as to submission of the budget.
A20: General Instructions
A22: The worksheets are named (see the tab) in each budget workbook. We will identify the worksheet by referencing the tab in parentheses (i.e. General Fund reference would be (gen).
A24: All dollar amounts should be rounded to whole dollars (do not record cents).
A26: Enter information in all areas that are green if they apply to the budget you are preparing.
A28: The yellowed shaded areas of the budget worksheets contain formulas or links which should not be changed, and are protected. Most errors occur because of information entered on the input pages. If you are experiencing a problem with a protected cell, first check to see how the information was entered on the input pages. If the information was entered correctly, and you still continue to experience problems, please contact us for assistance.
A30: The blue areas indicated where the information comes from to complete the section input.
A32: Red areas are for notes or indicate a problem area that will need possible corrective action taken.
A34: To print the spreadsheets, you can either print one sheet at a time or all of the sheets at once.
A37: Computer Spreadsheet Preparation
A39: 1. The information needed for the Input Prior Year Sheet (inputPrYr) comes directly from last year budget. After the information has been entered, please verify the data is correct. If at a later date, it is determined the information is incorrect, correct the information on this page, not the fund page.
A40: 1a. On line 2- 'Enter Township Name' - In the green area. The green area will expand and accommodate the township name.
A41: 1b. Dates for the entire budget workbook is controlled by the year entered into the "Enter year being budgeted (YYYY)" field. If you find a date that is not correct for the budget being submitted, please contact us for assistance.
A42: 1c. Next to the last year Ad Valorem Taxes column, column added, 'Amounts used in lieu of last year ad valorem taxes'. If you would like to adjust the previous year ad valorem due to delinquency in taxes to show a more actual amount of taxes received, you can key in the percentage in the green box which will calculate new ad valorem taxes to be used for the current budgeted year. The new amounts will be linked to the applicable tax levy fund pages. This is not required to be used and the original ad valorem taxes will be linked to the applicable fund pages.
A44: 2. The information entered into the Input Other (inputOth) worksheet is obtained from the County Clerk County Treasurer, and the budget from two years ago(the year for actual column of current budget). After the information has been entered, please verify the data is correct.
A45: 2a. Enter the Computation of Delinquency information. Please note that K.S.A. 79-2930 states that such allowance shall not exceed by more than 5% the percentage of delinquency for the preceding tax year. Such allowance is not mandatory, but may be used if the municipality wishes.
A46: 2b. If the township chooses not to use the delinquency rate for all tax levy funds, then the township must delete the rate from those funds. First step, go to the fund tab the fund not requiring the delinquency rate, take the protection off the sheet by going to the 'Tools' and scrolling down to 'Protect' slide to right to 'Unprotect' and press enter. Next, go to the delinquency rate cell and press 'delete' key and put the protection back on by going to 'Tools' and scrolling down to 'Protect Sheet' and press the 'OK' button. Go to the next fund tab and complete the same steps.
A48: 3. The 'inputBudSum' tab is used to place information on the Budget Summary. On this tab you will need to key in the following information: Name of Person presenting the budget, Title of Person, date the budget hearing will be held, time of the hearing, location of the budget hearing, and a place whereas the taxpayers can obtain a copy of the budget.
A49: 3a. Note: There must be at least 10 days between when the Notice of Budget Hearing is printed and when the hearing is to be held. To be in compliance with K.S.A. 79-2929, it's critical to have at least 10 days between publication and hearing, but also to provide the date, time, and location of the hearing.
A50: 3b. Once a date has been entered in the Date block, the following statement will appear: 'Latest date for notice to be published in your newspaper'. Please ensure to take into consideration as to when your newspaper is published when arriving at the hearing date.
A52: 4. The information contained on the Certificate Page (cert) is the result of links from the fund and input pages . If there is incorrect information on the Certificate Page, do not correct the Certification Page, but rather correct the fund or input page that links the information to the Certificate Page. If you can not correct the error, please call us for assistance.
A53: 4a. The Certificate page has a statement 'Is a Resolution required?' which will either show 'Yes' or 'No'. This statement compares the Certificate total Ad Valorem Tax to Computation to Determine Limit line 14. If a 'Yes' appears then a resolution is required to be completed and attached to the budget. No action is required if a 'No' appears.
A54: 4b. If someone other than a municipal employee assists in preparing the budget, please enter the person's or firm's name and address or email address in the area provided.
A55: 4c. If the city has a library, then in the Certificate page will show under the 'Table of Contents:' a new table is required. The new table is named: 'Computation to Determine State Library Grant' which found on the "Library Grant" tab. The State Library will use the "Library Grant" tab to authorize a grant to the library. This tab must be printed and attached to the budget that is submitted to the County Clerk. No action is taken if the city does not have a library and will not appear on the Certificate page.
A57: 5. The majority of information on the Computation to Determine Limit Page (computation) comes from data on the Input Pages (inputpryr and inputOth) and Debt Service Page (DebtService). If there is incorrect information on the Computation Page, please correct the source of the information from either the Input Page or Debt Service Page. If you can not correct the error, please call us for assistance.
A58: 5a. The information for Computation to Determine Limit page (computationSpecial) comes from data on the input pages (inputpryr and inputoth). If a error is found, please correct the information from the input pages.
A59: 5b. Print the Resolution page (resolution) if the max levy is exceeded. Complete the printed resolution and ensure to attached it the budget.
A61: 6. Motor Vehicle Allocation (Mvalloc) information comes from the input pages (inputPrYr and inputOth). Once calculated, the motor allocation information are linked to the applicable fund pages. If information concerning the table are not correct, please do not change the table, but rather correct the information on the input worksheets.
A63: 7. The Schedule of Transfers (transfer) is completed from the individual completed fund pages. Be sure to provide the statute that authorizes the transfer.
A64: 7a. The totals are now linked to the Budget Summary page.
A65: 7b. Adjustments are made for only those non-budgeted expenditure transfers appearing in the current and/or proposed columns of the schedule and do not have expenditures shown in the Budget Summary current and proposed columns. These types of transfers are not truely an expenditure at this time and as such an adjustment is needed to show the taxpayers the actual expenditures for the municipality.
A66: 7c. If the General Fund (gen) and Road Fund (road) has transfers to the Special Machinery Fund (road), the Schedule of Transfers now has links for the transfers and provides the statute reference.
A67: 7d. TransferStatutes tab provides statute reference for transfers which are not already identified.
A69: 8. Statement of Indebtedness (debt) must show all the debt owed or proposed to be issued. The general obligation and other bond totals for budget year is linked to the Budget Summary and prior years are linked by the input page (inputpryr). If the township does not have any debt, then on the first line enter 'none'.
A71: 9. Statement of Conditional Lease, Lease-Purchases and Certificate of Participation (debt) must be completed for all transactions which will be owned by the township at the end of lease period. Principal Balance Due for the actual year is linked to the Budget Summary page and prior year linked by the input page (inputpryr). If the township does not have any leases, then on the first line enter 'none'.
A73: 10. Library Grant tab is linked with the Library fund page. This table information comes directly off the Library fund page and Budget Summary page which is used to determine if the municipality qualifies for a State grant. If qualify, then the Library fund page will indicate 'Qualifies for State Library Grant' and if not, then indicates to 'See 'Library Grant' tab for further assistance. If the Library fund page is used, then the Certificate page will reflect in the Table of Contents the requirement of 'Computation to Determine State Library Grant' which is required to be attached to the budget. For those printing paper copies of the budget, only the table will be printed off. Please note: For those you do not have a Library fund page, no action is required and the table does not become part of the budget.
A75: 11. The spreadsheet has individual fund sheets for General Fund (general), Debt Service and Library (DebtSvs-Library), Road (road), 8 levy pages (levy page9 to levy page12), and 2 no levy fund pages (nolevypage12), Only complete the fund pages needed. When the fund pages are completed, the totals will be shown on the Certificate and Budget Summary pages.
A76: 11a. General Fund page and General Fund Detail page number is no longer set. Once the number is entered on the General Fund, then the page number is linked to the General Fund Detail page. If the municipality has a Library Fund, the Library Grant page becomes number 6 and the General Fund page would be numbered 7 otherwise the General would be 6.
A77: 11b. On all tax levy fund pages, we have placed 'Projected Carryover' for the proposed budgeted year. The carryover table provides a little insight as what the projected cash might be using figures from the budget being submitted. Please keep in mind that the figures used are only estimates and if the actual receipts or expenditures vary, then the project cash carryover will be affected. Be advised that the delinquent taxes are not included in the projected carryover as they have a major impact on the 'Desired Carryover' table.
A78: 11c. On all tax levy fund page, we have placed 'Desired Carryover' which you can place a desired carryover amount and the table will show the mill rate impact along with the expenditure adjustments required to reach the desired carryover. Note: if a delinquency rate is used, the table might have you do several adjustments to get the desired result or close to the desire amount.
A79: 11d. On all tax levy fund pages, we have placed 'Mill Rate Comparison' table so you can compare the propose fund mill rate to the current fund mill rate and compare the total proposed mill rate to the total current mill rate. These figures are provided to assist with the determining appropriate mill rate for the proposed budgeted year.
A80: 11e. Each tax levy fund will have an expenditure for the neighborhood revitalization. You will only need to input the rebate amounts for the actual and current year. The proposed budget year amount will be computed for you. Please see step 12 for instructions for the neighborhood revitalization rebate for the proposed budget year.
A81: 11f. Each fund page has a 'Miscellaneous' receipt and expenditure line item. Once an amount has been entered into the block for actual/current/proposed columns, the amount will be compared with either total expenditures or total receipts to determine if it exceeds the 10% Rule for K.S.A. 79-2927. If the amount exceeds the 10% Rule, the block will turn red, the amount bolded, and a red statement will appear 'Exceed 10% Rule'. In order to remove the statement and return the block to normal, you must reduce the amount to either 10% or less. Note: the proposed column miscellaneous receipt also takes into consideration the amount of ad valorem taxes in determining the 10% Rule.
A82: 11g. The Debt Service (DebtSvs-Library) fund page can contain all debts owe by the township and the amounts should agree with the Statement of Indebtedness amounts. Debts that are not from a tax levy fund should have enough funds transferred into the Debt Service fund to cover the bond principle and interest for these debts.
A83: 11h All levy fund pages have a Non-Appropriated Balance block. K.S.A. 79-2927 allows the township to enter an amount not to exceed 5% of the total expenditures for each fund. The Non-Appropriated Balance block is not mandatory to have an amount entered. If the amount entered in the block exceeds the 5%, a warning "Exceeds 5%" will appear. In order to remove this warning message, you must reduce the non-appropriate figure.
A84: 11i. Each fund after the "unencumbered cash bal dec31", will show the budget authority expenditure amount. A comparison is made between the budget authority for the actual year and the actual total expenditures for the actual year as shown in the budget. If the total expenditures exceed the budget authority amount, then a "See Tab A" appears to indicate a possible violation. Another comparison is made for the unencumbered cash balance dec 31 to determine if the fund ended with a negative cash balance and if so, then a "See Tab B" will appear for the possible violation.
A85: 11j. A comparison is made between the budget authority for the current year and total expenditures for the current budget expenditures as shown in the budget. If the current year adjusted expenditures are more than the budget authority, then a possible violation has occurred and red 'See Tab C' will appear and expenditure block turns red. Another comparison is made for the unencumbered cash balance dec 31 to determine if the fund ended with a negative cash balance and if so, then a "See Tab D" will appear for the possible violation.
A86: 11k. All no-tax levy fund pages for the proposed budget year will have an edit on the unencumbered cash balance. If the cash balance is negative, then the block turns red and statement 'See Tab E' will appear.
A87: 11l. If a transfer from the Road fund to Special Machinery is made in the actual year, the transfer has been link to the Special Machinery fund. If the transfer exceeds 25% of Resources Available, then a red error message will appear (Exceeds 25%) and the block turns red. To remove the error message, you should reduce the amount of the transfer for the Road which will change the Special Machinery amount. If the transfer money has not been spent in the Special Machinery fund, then you can fix the transfer to bring within the limitation. But, if the transfer money has been spent, then no action can be taken to fix the violation. In addition, the transfer is linked to the Schedule of Transfers.
A88: 11m. If a transfer from the Road fund to Special Machinery is made for the current and proposed budgeted years, the transfers has been link to the Special Machinery and Schedule of Transfers. If the transfer exceeds 25% of Resources Available, then a red error message will appear (Exceeds 25%) and the block turns red. To remove the error message, you should reduce the amount of the transfer for both Road and Special Machinery.
A89: 11n. The General Fund has two line expenditures for transfers to the Special Machinery Fund. The transfers are labeled, 'Transfer to Spec. Mach.(No Levy) and 'Transfer to Spec. Mach.(Gen has Levy). Note: If a transfer is made from the General Fund to Special Machinery, only one transfer is allowed, you must chose the expenditure based upon the General Fund situation. If two transfers are made, on the Special Machinery page will show a error message 'No Authorized Two Transfers - Only One'. You are not required to make a transfer.
A90: 11o. When the General Fund has ad valorem taxes for the actual, current, and proposed budgeted year, then the block for 'Transfer to Spec. Mach.(No Levied) will turn red. If a transfer amount is shown in the block, then in the yellow area a message will appear 'Not Auth', the transfer should be moved to the next expenditure line 'Transfer to Spec. Mach. (Gen has levy) or deleted if the transferred money has not been spent in the Special Machinery Fund. The transfer is linked to the Schedule of Transfers and Special Machinery Fund. Note: Transfers for the current or proposed budgeted year and a violation occurs, then the amount should be reduced.
A91: 11p. The General Fund has expenditure line item 'Transfer to Spec. Mach.(Gen has levy) which can be used to transfer up to 25% of the General Fund Resources Available (if the fund has enough cash) to the Special Machinery Fund. If the transfer exceeds the 25% limitation, the block will turn red and a message will appear in yellow box below the transfer in red 'Exceeds 25%'. The violation can be fixed for the actual budgeted year by reducing the transfer amount to 25% or below and the message will go away and the block will turn back to green. But, if the transfer amount has already been spent, then the violation can not be fix. If violation occurs for transfers in the current and proposed budget years, the violation should be fixed by reducing the amount. All transfers are linked to the Schedule of Transfers and Special Machinery Fund.
A92: 11q. The non-budgeted pages (nonbud) holds 5 non-budgeted funds. The non-budgeted funds are only required to show the actual year receipts and expenditures. The expenditures total will only be linked to the Budget Summary page and Certificate page will list the fund name (non-budgeted funds). Normally, the unencumbered cash balance should end with a positive cash balance, but if it ends with a negative, then the spreadsheet will indicate the negative balance by having 'See Tab B' under the unencumbered cash balance.
A94: 12. Neighborhood Revitalization (nhood) should be completed only after all tax levy fund pages been completed and the levy rates have been computed on the Budget Summary page. You will need to either print the Budget Summary page or write down the dollar amount of ad valorem needed for each tax levy fund. The ad valorem amounts for each fund will then be input in the neighborhood revitalization table. The table will then compute the approximate amount of rebate and link to each tax levy fund page. This will cause each tax levy fund to have an entry in the neighborhood revitalization expenditure block, increase the total expenditures amount, recomputed the ad valorem needed, and link the new amount to the Budget Summary page.
A95: 12a. Warning, if you had already set the ad valorem taxes so that they were equal to or below the max amount for ad valorem without passing a ordinance, then the neighborhood revitalization rebate might cause the ad valorem tax amount to exceed the max levying amount. If so, you have three options, accept the rebate expenditures and pass the ordinance, or accept the rebate expenditures and reduce other expenditures to come back under the max amount for levying, or lastly, not use the rebate expenditures by deleting the ad valorem taxes that were keyed into the Neighborhood Revitalization Table.
A96: 12b. Note: You are not required to use the Neighborhood Revitalization Table and may continue doing the way you have in the past. The table can be used to know approximate amount of the rebate so that you will have an idea of the amount of ad valorem taxes you will not be receiving.
A97: 12c. Note: If you do not have Neighborhood Revitalization, this step is not done.
A99: 13. Budget Summary (summ) should link the information from other worksheets. If you find information which is not correct, please go to the worksheet from which the information is linked, and take corrective action. If you can not correct the error, please contact us for assistance.
A100: 13a. At the bottom of the page, in the green shaded area, enter the page number.
A101: 13b. The table 'Estimated Value Of One Mill' to show what 1 mill rate would generate in dollars for the municipality.
A102: 13c. Tables 'What The Mill Rate The Same As' and 'Impact On Keeping The Same Mill Rate', that shows the impact if the previous mill rate is used for the proposed budgeted year. To achieve this mill rate, the tax levy fund expenditures will need to be changed by the amount shown. Depending upon the number of tax levy funds involved, the change can be made to one fund, combination of funds, or all of the tax levy fund expenditures. Note: If a delinquency rate is used on the tax levy fund pages, the table might have you do several adjustments to get the desired result or close to the desire amount. Also please note, this table is not required to be used, but as a tool to assist in budgeting.
A103: 13d. The table 'What Mill Rate Would Be Desired', whereas a municipality can create a desired mill rate. If a municipality has future plans to make a large purchase, project, or just would like a little more unencumbered cash balance, this table will show the amount of ad valorem taxes needed to reach its needs and amount of adjustments to the tax levy fund expenditures to reach this desired mill rate. This table could also be used to see the impact if the municipality would like to lower the mill rate. To use this table, simply enter in the green area the desired mill rate. Note: If a delinquency rate used on the tax levy fund pages, the table might have you do several adjustments to get the desired result or close to the desire amount. Also please note, this table is not required to be used, but as a tool to assist in budgeting.
A104: 13e. Before printing, review the form to ensure all the information is provided and the figures are correct. Print the page, have official sign it, and take to the local newspaper for printing. For those municipalities that are electronically sending the summary to the newspaper, you can type in the official name before sending. Please note: Signing the document is desired, but not signing will not cause the municipality to reprint.
A105: 13f. Once the 'Notice of Budget Hearing' has been printed in the local newspaper, please review the notice to ensure the information was correctly printed. If the information is not correct, the Notice may need to be republished, and may delay the submission of the budget to the County Clerk.
A107: 14. Before submission of the budget to the County Clerk, please review the entire document and verify that all amounts are correct. Amounts on the Certificate page should match to the fund pages and may also match to the Budget Summary. In addition, the Certificate Page needs to be signed by at least one member of the governing body (signatures of the entire governing body is preferred, but not mandatory).
A109: 15. How to Unprotect. All pages within the budget spreadsheet are protected. We protect the spreadsheets so that the links and formulas are kept in place. The protection can be taken off to increase lines or add additional information to the individual spreadsheet.
A110: 15a. If you have an older version of excel whereas 'Tools' is one of the excel heading. To remove the protection, place the cursor on the cell that is protected, go to the 'Tools' heading with your mouse and click on it, slide down where it shows 'Unprotect' and click on it. The cell is now unprotected and you can make your changes. Once all changes are completed for that spreadsheet, put the protection back on by clicking on 'Tools', slide down to 'Protect' and click on it, a box will appear and press the 'OK' button. Now the spreadsheet is protected again.
A111: 15b. If you have the newer version of excel with headings; Home, Insert, Page Layout, Formulas, etc. To unprotect the spreadsheet, move your mouse to the cell that is protected, click on heading 'Home', move mouse to heading 'Cells' and click on 'Format', slide the mouse down to 'Unprotect' under 'Protect' heading and click. Now the cell is unprotected and you may make your changes. Once all changes are completed for that spreadsheet, put the protection back on by following the steps except the last step by selecting 'Protect' which a box will appear and press the 'Ok' button. Now the protection is back on for that spreadsheet.

Sheet inputPrYr
A1: Input sheet for Township budget form
A2: Enter Township Name followed by 'Township' | D2: Garden City Township
A3: Enter County Name followed by 'County" | D3: Finney County
A5: Enter year being budgeted (YYYY) | D5: 2013
A7: Enter the following information from the sources shown. This information will be entered on the budget | G7: Note: The below amounts are used to reflect actual taxes received due to delinquent taxes. Put a percentage in the green box to compute the amount and link to the fund pages. This is not mandatory and can be left blank.
A8: forms in the appropriate locations. If any of the numbers are wrong, change them on this input sheet.
A10: Note: All amounts are to be entered in as whole numbers only.
A12: The input for the following comes directly from
A13: =CONCATENATE("the ",D5-1," Budget, Certificate Page:") -> the 2012 Budget, Certificate Page:
A14: *If amended, then use the amended figures.* | D14: =$D$5-1 -> 2012 | E14: =$D$5-2 -> 2011 | G14: Amounts used in lieu of | H14: %
A15: Fund name for all funds with a tax levy: | C15: Statute | D15: *Expenditures* | E15: Ad Valorem Tax | G15: =CONCATENATE("",E14," Ad Valorem Tax") -> 2011 Ad Valorem Tax | H15: 0
B16: General | C16: 79-1962 | D16: 38615 | G16: =IF(H15>0,ROUND(E16-(E16*H15),0),0) -> 0
B17: Debt Service | C17: 10-113 | G17: =IF(H15>0,ROUND(E17-(E17*H15),0),0) -> 0
B18: Library | C18: 12-1220 | G18: =IF(H15>0,ROUND(E18-(E18*H15),0),0) -> 0
B19: Road | C19: 68-518c | G19: =IF(H15>0,ROUND(E19-(E19*H15),0),0) -> 0
B20: Fire | C20: 79-1962 | D20: 200000 | E20: 77801 | G20: =IF(H15>0,ROUND(E20-(E20*H15),0),0) -> 0
G21: =IF(H15>0,ROUND(E21-(E21*H15),0),0) -> 0
G22: =IF(H15>0,ROUND(E22-(E22*H15),0),0) -> 0
G23: =IF(H15>0,ROUND(E23-(E23*H15),0),0) -> 0
G24: =IF(H15>0,ROUND(E24-(E24*H15),0),0) -> 0
G25: =IF(H15>0,ROUND(E25-(E25*H15),0),0) -> 0
A26: =CONCATENATE("Total Ad Valorem Tax for ",D5-1," Budgeted Year") -> Total Ad Valorem Tax for 2012 Budgeted Year | E26: =SUM(E16:E25) -> 77801
A28: Other Fund Names:
A31: =CONCATENATE("Total Expenditures for ",D5-1,"") -> Total Expenditures for 2012 | D31: =SUM(D16:D25,D29:D30) -> 238615
A33: Non-budgeted funds:
A34: 1
A35: 2
A36: 3
A37: 4
A38: 5
A40: The input for the following comes directly from | D40: =CONCATENATE("",D5-3," Tax Rate (",D5-2," Column)") -> 2010 Tax Rate (2011 Column)
A41: =CONCATENATE("the ",D5-1," Budget, Budget Summary Page:") -> the 2012 Budget, Budget Summary Page:
B42: =B16 -> General
B43: =B17 -> Debt Service
B44: =B18 -> Library
B45: =B19 -> Road
B46: Fire | D46: 0.181
B47: 0
B48: 0
B49: 0
B50: 0
B51: 0
A52: =CONCATENATE("Total ",D5-3," Tax Levy Rate") -> Total 2010 Tax Levy Rate | D52: =SUM(D42:D51) -> 0.181
A54: =CONCATENATE("Total Tax Levied (",D5-2," budget column)") -> Total Tax Levied (2011 budget column) | E54: 87521
A55: =CONCATENATE("Assessed Valuation (",D5-2," budget column)") -> Assessed Valuation (2011 budget column) | E55: 74128974
A58: Outstanding Indebtedness, January 1: | D58: =D5-3 -> 2010 | E58: =D5-2 -> 2011
A59: G.O. Bonds | D59: 0 | E59: 0
A60: No-Fund Warrant | D60: 0 | E60: 0
A61: Lease Purchase Principal | D61: 0 | E61: 0

Sheet inputOth
A1: =inputPrYr!D2 -> Garden City Township | E1: =inputPrYr!D5 -> 2013
A2: =inputPrYr!D3 -> Finney County
A4: Note: All amounts are to be entered in as whole numbers only.
A6: =CONCATENATE("From the County Clerks Budget Information for ",E1,":") -> From the County Clerks Budget Information for 2013:
A7: =CONCATENATE("Total Assessed Valuation for ",E1-1,"") -> Total Assessed Valuation for 2012 | E7: 83550962
A8: =CONCATENATE("New Improvements for ",E1-1,"") -> New Improvements for 2012 | E8: 601869
A9: =CONCATENATE("Personal Property excluding oil, gas, and mobile homes - ",E1-1,"") -> Personal Property excluding oil, gas, and mobile homes - 2012 | E9: 5732257
A10: =CONCATENATE("Property that has changed in use for ",E1-1,"") -> Property that has changed in use for 2012 | E10: 641281
A11: =CONCATENATE("Personal Property excluding oil, gas, and mobile homes- ",E1-2,"") -> Personal Property excluding oil, gas, and mobile homes- 2011 | E11: 5633721
A12: =CONCATENATE("Gross earnings (intangible) tax estimate for ",E1,"") -> Gross earnings (intangible) tax estimate for 2013
A13: =CONCATENATE("Neighborhood Revitalization - ",E1,"") -> Neighborhood Revitalization - 2013
A15: =CONCATENATE("Actual Tax Rates for the ",E1-1," Budget:") -> Actual Tax Rates for the 2012 Budget:
A16: Fund | D16: Rate
A17: =inputPrYr!B16 -> General
A18: =inputPrYr!B17 -> Debt Service
A19: =inputPrYr!B18 -> Library
A20: =inputPrYr!B19 -> Road
A21: =inputPrYr!B20 -> Fire | D21: 0.923
A22: =inputPrYr!B21 -> 0
A23: =inputPrYr!B22 -> 0
A24: =inputPrYr!B23 -> 0
A25: =inputPrYr!B24 -> 0
A26: =inputPrYr!B25 -> 0
B27: Total | D27: =SUM(D17:D26) -> 0.923
A29: =CONCATENATE("Final Assessed Valuation from the November 1, ",E1-2," Abstract:") -> Final Assessed Valuation from the November 1, 2011 Abstract: | E29: 84374869
A31: =CONCATENATE("From the County Treasurer's Budget Information - ",E1," Budget Year Estimates:") -> From the County Treasurer's Budget Information - 2013 Budget Year Estimates:
A32: Motor Vehicle Tax Estimate | E32: 7970
A33: Recreational Vehicle Tax Estimate | E33: 133
A34: 16\20 M Vehicle Tax | E34: 438
A35: LAVTR
A36: Special Highway/Gasoline Tax
A38: Computation of Delinquency
A39: =CONCATENATE("Actual Delinquency for ",E1-3," Tax - (rate .01213 = 1.213%, key in 1.2)") -> Actual Delinquency for 2010 Tax - (rate .01213 = 1.213%, key in 1.2) | E39: 0
A40: Delinquency % used in this budget will be shown on all fund pages with a tax levy** | E40: 0
A41: **Note: The delinquency rate can be up to 5% more than the actual delinquency rate from the previous year.
A43: =CONCATENATE("From the ",E1-2," Budget Certificate Page") -> From the 2011 Budget Certificate Page
B44: =CONCATENATE("",E1-2," Expenditure Amounts") -> 2011 Expenditure Amounts | C44: =CONCATENATE("Note: If the ",E1-2," budget was amended, then the") -> Note: If the 2011 budget was amended, then the
A45: Funds | B45: Budget Authority | C45: expenditure amounts should reflect the amended
A46: =inputPrYr!B16 -> General | B46: 48990 | C46: expenditure amounts.
A47: =inputPrYr!B17 -> Debt Service
A48: =inputPrYr!B18 -> Library
A49: =inputPrYr!B19 -> Road
A50: =inputPrYr!B20 -> Fire | B50: 165000
A51: =inputPrYr!B21 -> 0
A52: =inputPrYr!B22 -> 0
A53: =inputPrYr!B23 -> 0
A54: =inputPrYr!B24 -> 0
A55: =inputPrYr!B25 -> 0
A56: =inputPrYr!B29 -> 0
A57: =inputPrYr!B30 -> 0

Sheet inputBudSum
J1: January
A2: This tab will put the date and time and location of the budget hearing on the Budget Summary page. Also, provide the location where as the budget can be reveiwed. Please input information in the green areas. | J2: February
J3: March
A4: Official Name: | B4: Patricia Stockham | J4: April
J5: May
A6: Official Title: | B6: Garden City Township Treasurer | J6: June
J7: July
A8: Date: | B8: July 25, 2012 | D8: Must be at least 10 days between date published and hearing held. | J8: August
D9: =IF(B8="","",CONCATENATE("Latest date for notice to be published in your newspaper: ",G19," ",G23,", ",G24)) -> Latest date for notice to be published in your newspaper: July 15, 2012 | J9: September
A10: Time: | B10: 10:30 a.m. | J10: October
J11: November
A12: Location: | B12: 2005 E. 6 Mile Road | J12: December
A15: Available at: | B15: Finney County Clerk's office
A18: Examples
G19: =IF(B8="","",INDIRECT(G20)) -> July
A20: Date: | B20: August 12, 2010 | G20: =IF(B8="","",CONCATENATE("J",G22)) -> J7
G21: =B8-10 -> 2012-07-15
A22: Time: | B22: 7:00 PM or 7:00 AM | G22: =IF(B8="","",MONTH(G21)) -> 7
G23: =IF(B8="","",DAY(G21)) -> 15
A24: Location: | B24: John Boy's residence 2310 S Highway, Ike City | G24: =IF(B8="","",YEAR(G21)) -> 2012
A26: Available at: | B26: Shawnee County Clerk's Office

Sheet cert
B1: CERTIFICATE | H1: =inputPrYr!D5 -> 2013
B3: =CONCATENATE("To the Clerk of ",inputPrYr!D3,", State of Kansas") -> To the Clerk of Finney County, State of Kansas
B4: We, the undersigned, officers of
B5: =inputPrYr!D2 -> Garden City Township
B6: certify that: (1) the hearing mentioned in the attached publication was held;
B7: (2) after the Budget Hearing this budget was approved and adopted as the
B8: =CONCATENATE("maximum expenditures for the various funds for the year ",H1,"; and (3) the") -> maximum expenditures for the various funds for the year 2013; and (3) the
B9: =CONCATENATE("Amount(s) of ",H1-1," Ad Valorem Tax are within statutory limitations for the ",H1," Budget.") -> Amount(s) of 2012 Ad Valorem Tax are within statutory limitations for the 2013 Budget.
E11: =CONCATENATE("",H1," Adopted Budget") -> 2013 Adopted Budget
F12: =CONCATENATE("Amount of ",H1-1," Ad Valorem Tax") -> Amount of 2012 Ad Valorem Tax | G12: County
D13: Page | E13: Budget Authority | G13: Clerk's
B14: Table of Contents: | D14: No. | E14: for Expenditures | G14: Use Only
B15: =CONCATENATE("Computation to Determine Limit for ",H1,"") -> Computation to Determine Limit for 2013 | D15: 2
B16: Alloc of MVT, RVT, and 16/20M Vehicles Tax | D16: 3
B17: Schedule of Transfers | D17: 4
B18: Statement of Indebt. & Lease/Purchase | D18: 5
B19: =IF(inputPrYr!E18="","","Computation to Determine State Library Grant") ->  | D19: =IF(inputPrYr!D18="","",'Library Grant'!F40) -> 
B20: Fund | C20: K.S.A.
B21: =inputPrYr!B16 -> General | C21: =inputPrYr!C16 -> 79-1962 | D21: =IF(gen!C61>0,gen!C61," ") -> 6 | E21: =IF(gen!$E$50<>0,gen!$E$50," ") -> 38539 | F21: =IF(gen!$E$57<>0,gen!$E$57,0) -> 0 | G21: =IF(AND(gen!E57=0,$C$40>=0)," ",IF(AND(F21>0,$C$40=0)," ",IF(AND(F21>0,$C$40>0),ROUND(F21/$C$40*1000,3)))) -> 
B22: Debt Service | C22: =inputPrYr!C17 -> 10-113 | D22: =IF('DebtSvs-Library'!C83>0,'DebtSvs-Library'!C83," ") ->  | E22: =IF('DebtSvs-Library'!E33<>0,'DebtSvs-Library'!E33," ") ->  | F22: =IF('DebtSvs-Library'!E40<>0,'DebtSvs-Library'!E40," ") ->  | G22: =IF(AND('DebtSvs-Library'!E40=0,$C$40>=0)," ",IF(AND(F22>0,$C$40=0)," ",IF(AND(F22>0,$C$40>0),ROUND(F22/$C$40*1000,3)))) -> 
B23: =inputPrYr!B18 -> Library | C23: =inputPrYr!C18 -> 12-1220 | D23: =IF('DebtSvs-Library'!C83>0,'DebtSvs-Library'!C83," ") ->  | E23: =IF('DebtSvs-Library'!E73<>0,'DebtSvs-Library'!E73," ") ->  | F23: =IF('DebtSvs-Library'!E80<>0,'DebtSvs-Library'!E80," ") ->  | G23: =IF(AND('DebtSvs-Library'!E80=0,$C$40>=0)," ",IF(AND(F23>0,$C$40=0)," ",IF(AND(F23>0,$C$40>0),ROUND(F23/$C$40*1000,3)))) -> 
B24: =IF(inputPrYr!$B19>" ",inputPrYr!$B19," ") -> Road | C24: =IF(inputPrYr!C19>0,inputPrYr!C19," ") -> 68-518c | D24: =IF(road!C67>0,road!C67," ") ->  | E24: =IF(road!$E$43<>0,road!$E$43," ") ->  | F24: =IF(road!$E$50<>0,road!$E$50," ") ->  | G24: =IF(AND(road!E50=0,$C$40>=0)," ",IF(AND(F24>0,$C$40=0)," ",IF(AND(F24>0,$C$40>0),ROUND(F24/$C$40*1000,3)))) -> 
B25: =IF(inputPrYr!$B20>" ",inputPrYr!$B20," ") -> Fire | C25: =IF(inputPrYr!C20>0,inputPrYr!C20," ") -> 79-1962 | D25: =IF(levypage9!C81>0,levypage9!C81," ") -> 7 | E25: =IF(levypage9!$E$33<>0,levypage9!$E$33," ") -> 190000 | F25: =IF(levypage9!$E$40<>0,levypage9!$E$40," ") -> 98116 | G25: 1.178
B26: =IF(inputPrYr!$B21>" ",inputPrYr!$B21," ") ->  | C26: =IF(inputPrYr!C21>0,inputPrYr!C21," ") ->  | E26: =IF(levypage9!$E$73<>0,levypage9!$E$73," ") ->  | F26: =IF(levypage9!$E$80<>0,levypage9!$E$80," ") ->  | G26: =IF(AND(levypage9!E80=0,$C$40>=0)," ",IF(AND(F26>0,$C$40=0)," ",IF(AND(F26>0,$C$40>0),ROUND(F26/$C$40*1000,3)))) -> 
B27: =IF(inputPrYr!$B22>" ",inputPrYr!$B22," ") ->  | C27: =IF(inputPrYr!C22>0,inputPrYr!C22," ") ->  | D27: =IF(levypage10!C81>0,levypage10!C81," ") ->  | E27: =IF(levypage10!$E$33<>0,levypage10!$E$33," ") ->  | F27: =IF(levypage10!$E$40<>0,levypage10!$E$40," ") ->  | G27: =IF(AND(levypage10!$E$40=0,$C$40>=0)," ",IF(AND(F27>0,$C$40=0)," ",IF(AND(F27>0,$C$40>0),ROUND(F27/$C$40*1000,3)))) -> 
B28: =IF(inputPrYr!$B23>" ",inputPrYr!$B23," ") ->  | C28: =IF(inputPrYr!C23>0,inputPrYr!C23," ") ->  | D28: =IF(levypage10!C81>0,levypage10!C81," ") ->  | E28: =IF(levypage10!$E$73<>0,levypage10!$E$73," ") ->  | F28: =IF(levypage10!$E$80<>0,levypage10!$E$80," ") ->  | G28: =IF(AND(levypage10!$E$80=0,$C$40>=0)," ",IF(AND(F28>0,$C$40=0)," ",IF(AND(F28>0,$C$40>0),ROUND(F28/$C$40*1000,3)))) -> 
B29: =IF(inputPrYr!$B24>" ",inputPrYr!$B24," ") ->  | C29: =IF(inputPrYr!C24>0,inputPrYr!C24," ") ->  | D29: =IF(levypage11!C81>0,levypage11!C81," ") ->  | E29: =IF(levypage11!$E$33<>0,levypage11!$E$33," ") ->  | F29: =IF(levypage11!$E$40<>0,levypage11!$E$40," ") ->  | G29: =IF(AND(levypage11!$E$40=0,$C$40>=0)," ",IF(AND(F29>0,$C$40=0)," ",IF(AND(F29>0,$C$40>0),ROUND(F29/$C$40*1000,3)))) -> 
B30: =IF(inputPrYr!$B25>" ",inputPrYr!$B25," ") ->  | C30: =IF(inputPrYr!C25>0,inputPrYr!C25," ") ->  | D30: =IF(levypage11!C81>0,levypage11!C81," ") ->  | E30: =IF(levypage11!$E$73<>0,levypage11!$E$73," ") ->  | F30: =IF(levypage11!$E$80<>0,levypage11!$E$80," ") ->  | G30: =IF(AND(levypage11!$E$80=0,$C$40>=0)," ",IF(AND(F30>0,$C$40=0)," ",IF(AND(F30>0,$C$40>0),ROUND(F30/$C$40*1000,3)))) -> 
B31: =IF(inputPrYr!$B29>" ",inputPrYr!$B29," ") ->  | D31: =IF(nolevypage12!$C$65>0,nolevypage12!$C$65," ") ->  | E31: =IF(nolevypage12!$E$28<>0,nolevypage12!$E$28," ") -> 
B32: =IF(inputPrYr!$B30>" ",inputPrYr!$B30," ") ->  | D32: =IF(nolevypage12!$C$65>0,nolevypage12!$C$65," ") ->  | E32: =IF(nolevypage12!$E$59<>0,nolevypage12!$E$59," ") -> 
B33: =IF((inputPrYr!$B34>" "),(nonbud!$A3)," ") ->  | D33: =IF(nonbud!$F$33>0,nonbud!$F$33," ") -> 
B34: Special Machinery | D34: =IF(road!C67>0,road!C67," ") -> 
B35: Totals | D35: x | E35: =SUM(E21:E30) -> 228539 | F35: =SUM(F21:F30) -> 98116 | G35: =IF(SUM(G21:G30)>0,SUM(G21:G30),"") -> 1.178
B36: Budget Summary | D36: =summ!D38 -> 8
B37: Neighborhood Revitalization Rebate | D37: =IF(nhood!C38>0,nhood!C38,"") ->  | E37: Is a Resolution required? | F37: =IF(F35>computation!J34,"Yes","No") -> Yes
B38: Resolution | D38: =IF(Resolution!D36>0,Resolution!D36,"") -> 9
B39: Final Assessed Valuation: | C39: County Clerk's Use Only
B40: Township | C40: 83334330
C41: =CONCATENATE("Nov. 1, ",H1-1," Valuation") -> Nov. 1, 2012 Valuation
B42: Assisted by:
E43: ________________________ _______________________
B45: Address: | E45: ________________________ _______________________
E47: ________________________ _______________________
B48: Email:
E49: ________________________ _______________________
B51: Attest: ____________________, | C51: =H1-1 -> 2012 | E51: ________________________ _______________________
E53: ________________________ _______________________
B54: County Clerk | E54: Governing Body
B58: Special Road Election held ___________ for ___Mills for ___ years.
B59: First levy in ______.

Sheet computation
C1: =inputPrYr!D2 -> Garden City Township | J1: =inputPrYr!D5 -> 2013
A3: =CONCATENATE("Computation to Determine Limit for ",J1,"") -> Computation to Determine Limit for 2013
J4: Amount of Levy
A5: 1. | B5: =CONCATENATE("Total Tax Levy Amount in ",J1-1,"") -> Total Tax Levy Amount in 2012 | H5: + | I5: $ | J5: =inputPrYr!E26 -> 77801
A6: 2. | B6: =CONCATENATE("Debt Service Levy in ",J1-1,"") -> Debt Service Levy in 2012 | H6: - | I6: $ | J6: =inputPrYr!E17 -> 0
A7: 3. | B7: Tax Levy Excluding Debt Service | I7: $ | J7: =J5-J6 -> 77801
B9: =CONCATENATE("",J1-1," Valuation Information for Valuation Adjustments:") -> 2012 Valuation Information for Valuation Adjustments:
A11: 4. | B11: =CONCATENATE("New Improvements for ",J1-1,":") -> New Improvements for 2012: | F11: + | G11: =inputOth!E8 -> 601869
A13: 5. | B13: =CONCATENATE("Increase in Personal Property for ",J1-1,":") -> Increase in Personal Property for 2012:
B14: 5a. | C14: =CONCATENATE("Personal Property ",J1-1,"") -> Personal Property 2012 | D14: + | E14: =inputOth!E9 -> 5732257
B15: 5b. | C15: =CONCATENATE("Personal Property ",J1-2,"") -> Personal Property 2011 | D15: - | E15: =inputOth!E11 -> 5633721
B16: 5c. | C16: Increase in Personal Property (5a minus 5b) | F16: + | G16: =IF(E14>E15,E14-E15,0) -> 98536
G17: (Use Only if > 0)
A18: 6. | B18: =CONCATENATE("Valuation of Property that Changed in Use during ",J1-1,":") -> Valuation of Property that Changed in Use during 2012: | F18: + | G18: =inputOth!E10 -> 641281
A20: 7. | B20: Total Valuation Adjustment (Sum of 4, 5c, 6) | G20: =G11+G16+G18 -> 1341686
A22: 8. | B22: =CONCATENATE("Total Estimated Valuation July 1,",J1-1,"") -> Total Estimated Valuation July 1,2012 | E22: =inputOth!E7 -> 83550962
A24: 9. | B24: Total Valuation less Valuation Adjustment (8 minus 7) | G24: =E22-G20 -> 82209276
A26: 10. | B26: Factor for Increase (7 divided by 9) | G26: =IF(G20>0,G20/G24,0) -> 0.01632037241
A28: 11. | B28: Amount of Increase (10 times 3) | H28: + | I28: $ | J28: =ROUND(G26*J7,0) -> 1270
A30: 12. | B30: Maximum Tax Levy, excluding debt service, without Resolution (3 plus 11) | I30: $ | J30: =J7+J28 -> 79071
A32: 13. | B32: =CONCATENATE("Debt Service Levy in this ",J1,"") -> Debt Service Levy in this 2013 | J32: ='DebtSvs-Library'!E40 -> 0
A34: 14. | B34: Maximum levy, including debt service, without a Resolution (12 plus 13) | J34: =J30+J32 -> 79071
A36: =CONCATENATE("If the ",J1," budget includes tax levies exceeding the total on line 14, you must") -> If the 2013 budget includes tax levies exceeding the total on line 14, you must
A37: adopt a resolution to exceed this limit and attach a copy to this budget.

Sheet mvalloc
B1: =inputPrYr!D2 -> Garden City Township | J1: =inputPrYr!D5 -> 2013
B2: =inputPrYr!D3 -> Finney County
B6: Allocation of Motor, Recreational, and 16/20M Vehicle Tax
B9: Budgeted Funds | D9: Budget Tax Levy | E9: =CONCATENATE("Budget Tax Levy Rate for ",J1-1,"") -> Budget Tax Levy Rate for 2012 | G9: =CONCATENATE("Allocation for Proposed Year ",J1,"") -> Allocation for Proposed Year 2013
B10: =CONCATENATE("for ",J1-1,"") -> for 2012 | D10: =CONCATENATE("Amount for ",J1,"") -> Amount for 2013 | G10: MVT | I10: RVT | J10: 16/20M Veh
B11: =inputPrYr!B16 -> General | D11: =IF(inputPrYr!E16>0,inputPrYr!E16," ") ->  | E11: =IF(inputOth!D17>0,inputOth!D17," ") ->  | G11: =IF(inputPrYr!E16=0,0,G23-SUM(G12:G20)) -> 0 | I11: =IF(inputPrYr!E16=0,0,I25-SUM(I12:I20)) -> 0 | J11: =IF(inputPrYr!E16=0,0,J27-SUM(J12:J20)) -> 0
B12: =inputPrYr!B17 -> Debt Service | D12: =IF(inputPrYr!E17>=0,inputPrYr!E17," ") -> 0 | E12: =IF(inputOth!D18>0,inputOth!D18," ") ->  | G12: =IF(inputPrYr!E17=0,0,ROUND(D12*$G$30,0)) -> 0 | I12: =IF(inputPrYr!$E$17=0,0,ROUND($D$12*$I$32,0)) -> 0 | J12: =IF(inputPrYr!E17=0,0,ROUND($D12*$J$34,0)) -> 0
B13: =inputPrYr!B18 -> Library | D13: =IF(inputPrYr!E18>=0,inputPrYr!E18," ") -> 0 | G13: =IF(inputPrYr!E18=0,0,ROUND(D13*$G$30,0)) -> 0 | I13: =IF(inputPrYr!$E$18=0,0,ROUND($D$13*$I$32,0)) -> 0 | J13: =IF(inputPrYr!E18=0,0,ROUND($D13*$J$34,0)) -> 0
B14: =IF(inputPrYr!$B19>" ",inputPrYr!$B19," ") -> Road | D14: =IF(inputPrYr!E19>=0,inputPrYr!E19," ") -> 0 | E14: =IF(inputOth!D20>0,inputOth!D20," ") ->  | G14: =IF(inputPrYr!E19=0,0,ROUND(D14*$G$30,0)) -> 0 | I14: =IF(inputPrYr!$E$19=0,0,ROUND($D$14*$I$32,0)) -> 0 | J14: =IF(inputPrYr!E19=0,0,ROUND($D14*$J$34,0)) -> 0
B15: =IF(inputPrYr!$B20>" ",inputPrYr!$B20," ") -> Fire | D15: =IF(inputPrYr!E20>=0,inputPrYr!E20," ") -> 77801 | E15: =IF(inputOth!D21>0,inputOth!D21," ") -> 0.923 | G15: =IF(inputPrYr!E20=0,0,ROUND(D15*$G$30,0)) -> 7970 | I15: =IF(inputPrYr!$E$20=0,0,ROUND($D$15*$I$32,0)) -> 133 | J15: =IF(inputPrYr!E20=0,0,ROUND($D15*$J$34,0)) -> 438
B16: =IF(inputPrYr!$B21>" ",inputPrYr!$B21," ") ->  | D16: =IF(inputPrYr!E21>=0,inputPrYr!E21," ") -> 0 | E16: =IF(inputOth!D22>0,inputOth!D22," ") ->  | G16: =IF(inputPrYr!E21=0,0,ROUND(D16*$G$30,0)) -> 0 | I16: =IF(inputPrYr!$E$21=0,0,ROUND($D$16*$I$32,0)) -> 0 | J16: =IF(inputPrYr!E21=0,0,ROUND($D16*$J$34,0)) -> 0
B17: =IF(inputPrYr!$B22>" ",inputPrYr!$B22," ") ->  | D17: =IF(inputPrYr!E22>=0,inputPrYr!E22," ") -> 0 | E17: =IF(inputOth!D23>0,inputOth!D23," ") ->  | G17: =IF(inputPrYr!E22=0,0,ROUND(D17*$G$30,0)) -> 0 | I17: =IF(inputPrYr!$E$22=0,0,ROUND($D$17*$I$32,0)) -> 0 | J17: =IF(inputPrYr!E22=0,0,ROUND($D17*$J$34,0)) -> 0
B18: =IF(inputPrYr!$B23>" ",inputPrYr!$B23," ") ->  | D18: =IF(inputPrYr!E23>=0,inputPrYr!E23," ") -> 0 | E18: =IF(inputOth!D24>0,inputOth!D24," ") ->  | G18: =IF(inputPrYr!E23=0,0,ROUND(D18*$G$30,0)) -> 0 | I18: =IF(inputPrYr!$E$23=0,0,ROUND($D$18*$I$32,0)) -> 0 | J18: =IF(inputPrYr!E23=0,0,ROUND($D18*$J$34,0)) -> 0
B19: =IF(inputPrYr!$B24>" ",inputPrYr!$B24," ") ->  | D19: =IF(inputPrYr!E24>=0,inputPrYr!E24," ") -> 0 | E19: =IF(inputOth!D25>0,inputOth!D25," ") ->  | G19: =IF(inputPrYr!E24=0,0,ROUND(D19*$G$30,0)) -> 0 | I19: =IF(inputPrYr!$E$24=0,0,ROUND($D$19*$I$32,0)) -> 0 | J19: =IF(inputPrYr!E24=0,0,ROUND($D19*$J$34,0)) -> 0
B20: =IF(inputPrYr!$B25>" ",inputPrYr!$B25," ") ->  | D20: =IF(inputPrYr!E25>=0,inputPrYr!E25," ") -> 0 | E20: =IF(inputOth!D26>0,inputOth!D26," ") ->  | G20: =IF(inputPrYr!E25=0,0,ROUND(D20*$G$30,0)) -> 0 | I20: =IF(inputPrYr!$E$25=0,0,ROUND($D$20*$I$32,0)) -> 0 | J20: =IF(inputPrYr!E25=0,0,ROUND($D20*$J$34,0)) -> 0
B21: Total | D21: =SUM(D11:D20) -> 77801 | E21: =SUM(E11:E20) -> 0.923 | G21: =SUM(G11:G20) -> 7970 | I21: =SUM(I11:I20) -> 133 | J21: =SUM(J11:J20) -> 438
B23: County Treasurer's Motor Vehicle Estimate | G23: =inputOth!E32 -> 7970
B25: County Treasurer's Recreational Vehicle Estimate | H25: =inputPrYr!E75 -> 0 | I25: =inputOth!E33 -> 133
B27: County Treasurer's 16/20M Vehicle Estimate | J27: =inputOth!E34 -> 438
B30: Motor Vehicle Factor | G30: =IF(D21=0,0,G23/D21) -> 0.1024408427
D32: Recreational Vehicle Factor | H32: =IF(D21=0,0,H25/D21) -> 0 | I32: =IF(D21=0,0,I25/D21) -> 0.001709489595
G34: 16/20M Vehicle Factor | J34: =IF(D21=0,0,J27/D21) -> 0.00562974769

Sheet transfer
F1: =inputPrYr!D5 -> 2013
A2: =inputPrYr!D2 -> Garden City Township
A5: Schedule of Transfers
A7: Expenditure | B7: Receipt | C7: Actual | D7: Current | E7: Proposed | F7: Transfers
A8: Fund Transferred | B8: Fund Transferred | C8: Amount for | D8: Amount for | E8: Amount for | F8: Authorized by
A9: From: | B9: To: | C9: =F1-2 -> 2011 | D9: =F1-1 -> 2012 | E9: =F1 -> 2013 | F9: Statute
A11: General | B11: Special Machinery | C11: =gen!$C$43 -> 0 | D11: =gen!$D$43 -> 0 | E11: =gen!$E$43 -> 0 | F11: =IF(C11+D11+E11>0,"80-1406b","") -> 
A12: General | B12: Special Machinery | C12: =gen!$C$45 -> 0 | D12: =gen!$D$45 -> 0 | E12: =gen!$E$45 -> 0 | F12: =IF(C12+D12+E12>0,"80-122","") -> 
A13: Road | B13: Special Machinery | C13: =road!$C$38 -> 0 | D13: =road!$D$38 -> 0 | E13: =road!$E$38 -> 0 | F13: =IF(C13+D13+E13>0,"68-141g","") -> 
B27: Total | C27: =SUM(C10:C26) -> 0 | D27: =SUM(D10:D26) -> 0 | E27: =SUM(E10:E26) -> 0
B28: Adjustments*
B29: Adjusted Totals | C29: =C27 -> 0 | D29: =SUM(D27-D28) -> 0 | E29: =SUM(E27-E28) -> 0
A32: *Note: | B32: =CONCATENATE("Adjustments are required only if the transfer is being made in ",D9," and/or ",E9," from a non-budgeted fund.") -> Adjustments are required only if the transfer is being made in 2012 and/or 2013 from a non-budgeted fund.

Sheet TransferStatutes
A1: Transfers - Townships
A3: K.S.A. 2-1318. Transfer to noxious weed capital outlay fund. Any moneys remaining in the noxious weed eradication fund at the end of any year for which a levy is made may be transferred to the noxious weed capital outlay fund.
A6: K.S.A. 10-117a. Transfer from debt service fund. Whenever all bond issues have been completely retired the governing body may transfer to the general fund the unexpended balance in the debt service fund.
A9: K.S.A. 12-110d. Transfer to special ambulance or emergency medical service equipment fund. May transfer annually any funds received from a tax levy specifically authorized to be made for ambulance or emergency medical service, to a special reserve fund for replacement of ambulance or emergency medical service equipment.
A12: K.S.A. 12-16,102. Transfer to employee benefits contribution trust fund. May transfer to employee benefits trust fund from any source that may be lawfully utilized for the purposes stated in the ordinance or resolution creating such trust funds, including transfers from employee benefit funds established for other postemployment benefits.
A15: K.S.A. 12-17,118. Transfer to and from neighborhood revitalization fund. Authorizes transfers to a neighborhood revitalization fund from any source which may be lawfully utilized to finance redevelopment of designated revitalization areas and dilapidated structures and to provide rebates such purposes.
A18: K.S.A. 68-141g. Transfer to special machinery or equipment fund. Authorizes an annual transfer, not to exceed 25%, from the road, bridge or street fund to a special road, bridge or street building machinery, equipment and bridge building fund.
A21: K.S.A. 79-2958. Transfer from closed tax levy fund. Whenever there shall remain in any fund moneys received from the levy of a tax, after all obligations of such fund have been fully paid, the treasurer shall close out the fund and credit the excess to the general fund. Should any back taxes for such levy afterwards be received by the taxing subdivision, it shall be credited to the fund for general purposes.
A24: K.S.A. 80-122. Transfer from general fund to equipment reserve fund. Authorizes and annual budgeted transfer of up to 25% of the general fund to an equipment reserve fund to finance the acquisition of equipment
A27: K.S.A. 80-1406b. Transfer from general fund. The township board of any township which did not make a tax levy for the township general fund in the year next preceding and which has a surplus of moneys in the general fund may transfer all or any part of such surplus to any other fund.
A30: K.S.A. 80-1406c. Transfer from general fund to cemetery fund by certain townships. Townships in counties with a population less than 3,100, assessed taxable tangible valuation of the county between $14,000,000 and $20,000,000, and operating under the county road unit system may, by unanimous resolution, declare a surplus of monies in the general fund and transfer such surplus or any part therof to the cemetery fund.
A33: K.S.A. 80-1558. Transfer to special fire protection reserve fund. Authorizes an annual transfer of up to 25% from the fire fund to a special fire protection reserve fund.

Sheet debt-lease
B1: =inputPrYr!$D$2 -> Garden City Township | L1: =inputPrYr!D5 -> 2013
B2: =inputPrYr!$D$3 -> Finney County
B3: STATEMENT OF INDEBTEDNESS
B5: Type | C5: Date | D5: Interest | F5: Amount | I5: Amount Due | K5: Amount Due
B6: of | C6: of | D6: Rate | E6: Amount | F6: Outstanding | G6: Date Due | I6: =L1-1 -> 2012 | K6: =L1 -> 2013
B7: Debt | C7: Issue | D7: % | E7: Issued | F7: =CONCATENATE("Jan 1,",L1-1,"") -> Jan 1,2012 | G7: Interest | H7: Principal | I7: Interest | J7: Principal | K7: Interest | L7: Principal
B8: G.O. Bonds
B11: Total G.O. Bonds | F11: =SUM(F9:F10) -> 0 | I11: =SUM(I9:I10) -> 0 | J11: =SUM(J9:J10) -> 0 | K11: =SUM(K9:K10) -> 0 | L11: =SUM(L9:L10) -> 0
B12: Other
B15: Total Other | F15: =SUM(F13:F14) -> 0 | I15: =SUM(I13:I14) -> 0 | J15: =SUM(J13:J14) -> 0 | K15: =SUM(K13:K14) -> 0 | L15: =SUM(L13:L14) -> 0
B16: Total Indebtedness | F16: =SUM(F11+F15) -> 0 | I16: =SUM(I11+I15) -> 0 | J16: =SUM(J11+J15) -> 0 | K16: =SUM(K11+K15) -> 0 | L16: =SUM(L11+L15) -> 0
B18: STATEMENT OF CONDITIONAL LEASE-PURCHASE AND CERTIFICATE OF PARTICIPATION*
D20: Term | F20: Total
D21: of | E21: Interest | F21: Amount | G21: Principal | H21: Payments | I21: Payments
B22: Items | C22: Contract | D22: Contract | E22: Rate | F22: Financed | G22: Balance On | H22: Due | I22: Due
B23: Purchased | C23: Date | D23: (Months) | E23: % | F23: (Beginning Principal) | G23: =CONCATENATE("Jan 1,",L1-1,"") -> Jan 1,2012 | H23: =L1-1 -> 2012 | I23: =L1 -> 2013
F36: Total | G36: =SUM(G24:G35) -> 0 | H36: =SUM(H24:H35) -> 0 | I36: =SUM(I24:I35) -> 0
B38: ***If you are merely leasing/renting with no intent to purchase, do not list--such transactions are not lease-purchases.

Sheet Library Grant
B2: WORKSHEET FOR STATE GRANT-IN-AID TO PUBLIC LIBRARIES AND
B3: REGIONAL LIBRARY SYSTEMS
B5: =CONCATENATE("Budgeted Year: ",inputPrYr!D5,"") -> Budgeted Year: 2013
B7: =CONCATENATE("Library found in: ",inputPrYr!D2,"") -> Library found in: Garden City Township
B8: =inputPrYr!D3 -> Finney County
B10: Two tests are used to determine eligibility for State Library Grant. If the grant is approved, then the municipality's library will be paid the grant on February 15 of each year.
B12: First test:
E13: Current Year | G13: Proposed Year
E14: =inputPrYr!D5-1 -> 2012 | G14: =inputPrYr!D5 -> 2013
B15: ='DebtSvs-Library'!B48 -> Ad Valorem Tax | E15: ='DebtSvs-Library'!D48 -> 77801 | G15: ='DebtSvs-Library'!E80 -> 0
B16: ='DebtSvs-Library'!B49 -> Delinquent Tax | E16: ='DebtSvs-Library'!D49 -> 0 | G16: ='DebtSvs-Library'!E49 -> 0
B17: ='DebtSvs-Library'!B50 -> Motor Vehicle Tax | E17: ='DebtSvs-Library'!D50 -> 0 | G17: ='DebtSvs-Library'!E50 -> 0
B18: ='DebtSvs-Library'!B51 -> Recreational Vehicle Tax | E18: ='DebtSvs-Library'!D51 -> 0 | G18: ='DebtSvs-Library'!E51 -> 0
B19: ='DebtSvs-Library'!B52 -> 16/20M Vehicle Tax | E19: ='DebtSvs-Library'!D52 -> 0 | G19: ='DebtSvs-Library'!E52 -> 0
B20: LAVTR | E20: 0 | G20: 0
E21: 0 | G21: 0
B22: TOTAL TAXES | E22: =SUM(E15:E21) -> 77801 | G22: =SUM(G15:G21) -> 0
B23: Difference in Total Taxes: | E23: =G22-E22 -> -77801
B24: Qualify for grant: | D24: =IF((G22-E22)>0,"Qualify","Not Qualify") -> Not Qualify
B26: Second test:
B27: Assessed Valuation | E27: =summ!E27 -> 84374869 | G27: =summ!G27 -> 83550962
B28: Did Assessed Valuation Decrease? | E28: =IF(G27-E27>0,"No","Yes") -> Yes
B29: Levy Rate | E29: =summ!F18 ->  | G29: =summ!I18 -> 
B30: Difference in Levy Rate: | E30: =G29-E29 -> 
B31: Qualify for grant: | D31: =IF(E30>=0,"Qualify","Not Qualify") -> 
B33: Overall does the municipality qualify for a grant? | F33: =IF(D24="Not Qualify",IF(D31="Not Qualify",IF(D31="Not Qualify","Not Qualify","Qualify"),"Qualify"),"Qualify") -> 
B36: If the municipality would not have qualified for a grant, please see the below narrative for assistance from the State Library.
E40: Page No. | F40: 6
B43: Proposed Budget Year – Possible Loss of Library State Aid
B45: Welcome. You have been directed to this section because the amount of revenue from qualifying
B46: =CONCATENATE("sources in your ",G14," library fund is not equal to or greater than the amount from the same") -> sources in your 2013 library fund is not equal to or greater than the amount from the same
B47: =CONCATENATE("sources in ",E14,".") -> sources in 2012.
B49: In municipalities supporting a library the municipality must budget as much or more for the
B50: budget year as received in the current year for its library to be eligible for a state grant-in-aid
B51: through the State Library of Kansas.
B53: Is this a violation?
B55: No. However, it may cost the library valuable supplemental state—and in some cases, regional—
B56: revenue.
B58: Why did this happen?
B60: To answer this question, review K.S.A. 75-2556 et seq. to see how it applies to your library fund.
B61: No public library is eligible for a grant-in-aid if the total amount of current year ad valorem
B62: property tax, delinquent tax, and MV, recreational vehicle, and 16/20M tax is less than the total
B63: amount produced from such sources for the previous year.
B65: The statute only includes the library fund. If a separate library employee fund exists, it is not
B66: included in the calculation.
B68: Note also that although you are eligible to expend carryover from the previous year, the statute
B69: does not include carryover and it is not considered for determination of eligibility.
B71: Who determines eligibility?
B73: K.S.A. 75-2556 et seq. makes the State Library of Kansas responsible for determining eligibility
B74: and distribution of library grants-in-aid.
B76: Can this issue be corrected at this time?
B78: =CONCATENATE("If the ",G14," municipal budget has not been published and has not been submitted to the County") -> If the 2013 municipal budget has not been published and has not been submitted to the County
B79: Clerk the library fund can be fixed before the submission of the budget to the County Clerk.
B81: What should I do?
B83: First, review the budget summary page to ensure that the ad valorem tax mill rate for Proposed
B84: =CONCATENATE("Budget Year ",G14," is equal to or greater than that for Current Year Estimate ",E14,".") -> Budget Year 2013 is equal to or greater than that for Current Year Estimate 2012.
B86: If the mill rate is lower, check to see if the lesser amount is due to a decline in the assessed valuation.
B87: K.S.A. 75-2556(c) says that if the assessed valuation decreases the library will remain eligible as
B88: long as the ad valorem tax mill rate has not been reduced below the mill rate imposed for such
B89: =CONCATENATE("purpose for the previous (",E14,") year.") -> purpose for the previous (2012) year.
B91: =CONCATENATE("Next, look to see if delinquent tax for ",G14," is budgeted. Often this line is budgeted at $0 or left") -> Next, look to see if delinquent tax for 2013 is budgeted. Often this line is budgeted at $0 or left
B92: blank. If an amount is budgeted for the Proposed Budget Year it may improve the total to help
B93: the library’s eligibility as well as provide the library with authority under the cash basis law to
B94: spend any delinquent taxes it receives.
B96: Further options
B98: The State Library can continue eligibility if after evaluation of all circumstances it is determined
B99: that the maintenance of local tax support for the operations of the library is being met.
B101: These circumstances might include authorized transfer from the other funds, additional tax funds spent
B102: for support of the library that do not appear in the library fund, or special circumstances in this
B103: budget year. The State Library requires a letter of certification from the municipality to continue
B104: eligibility. For more information contact the State Library of Kansas at 785.296.3296, or e-mail:
B105: marc.galbraith@library.ks.gov

Sheet gen
B1: =inputPrYr!D2 -> Garden City Township | E1: =inputPrYr!D5 -> 2013
B3: FUND PAGE FOR FUNDS WITH A TAX LEVY
B4: Adopted Budget | C4: Prior Year | D4: Current Year | E4: Proposed Budget
B5: =inputPrYr!B16 -> General | C5: =CONCATENATE("Actual for ",$E$1-2,"") -> Actual for 2011 | D5: =CONCATENATE("Estimate for ",$E$1-1,"") -> Estimate for 2012 | E5: =CONCATENATE("Year for ",$E$1,"") -> Year for 2013
B6: Unencumbered Cash Balance January 1 | C6: 48515 | D6: =C51 -> 48439 | E6: =D51 -> 38239
B7: Receipts:
B8: Ad Valorem Tax | D8: =IF(inputPrYr!H15>0,inputPrYr!G16,inputPrYr!E16) -> 0 | E8: x
B9: Delinquent Tax
B10: Motor Vehicle Tax | E10: =mvalloc!G11 -> 0
B11: Recreational Vehicle Tax | E11: =mvalloc!I11 -> 0
B12: 16/20 M Vehicle Tax | E12: =mvalloc!J11 -> 0
B13: LAVTR | E13: =inputOth!E35 -> 0
B14: Gross Earnings (Intangibles) Tax | E14: =inputOth!E12 -> 0
Q19: 48
B23: Interest on Idle Funds | C23: 274 | D23: 300 | E23: 300
B24: Miscellaneous
B25: Does miscellaneous exceed 10% of Total Receipts | C25: =IF(C26*0.1<C24,"Exceed 10% Rule","") ->  | D25: =IF(D26*0.1<D24,"Exceed 10% Rule","") ->  | E25: =IF(E26*0.1+E57<E24,"Exceed 10% Rule","") -> 
B26: Total Receipts | C26: =SUM(C8:C24) -> 274 | D26: =SUM(D8:D24) -> 300 | E26: =SUM(E8:E24) -> 300
B27: Resources Available: | C27: =C26+C6 -> 48789 | D27: =D26+D6 -> 48739 | E27: =E26+E6 -> 38539
B28: Expenditures:
B30: Officers Pay
B31: Salaries & Wages
B32: Employee Benefits
B33: Supplies/Legal Publications | C33: 101 | D33: 200 | E33: 500
B34: Equipment | D34: 10000 | E34: 37539
B35: Buildings Maintenance
B36: Insurance
B37: Officer Bond | C37: 249 | D37: 300 | E37: 500
G41: =CONCATENATE("Desired Carryover Into ",E1+1,"") -> Desired Carryover Into 2014
B43: Transfer to Spec. Mach.(No Levy) | G43: Desired Carryover Amount: | J43: 0
B44: Does the General Fund have a tax levy | C44: =IF(AND($C$43>0,$C$8>0),"Not Authorized","") ->  | D44: =IF(AND($D$43>0,$D$8>0),"Not Authorized","") ->  | E44: =IF(AND(cert!F21>0,$E$43>0),"Not Authorized","") ->  | G44: Estimated Mill Rate Impact: | J44: =IF(J43=0,"",ROUND((J43+E57-G56)/inputOth!E7*1000,3)-G61) -> 
B45: Transfer to Spec. Mach.(Gen has Levy) | G45: =CONCATENATE("",E1," Tot Exp/Non-Appr Must Be:") -> 2013 Tot Exp/Non-Appr Must Be: | J45: =IF(J43>0,IF(E54<E23,IF(J43=G56,E54,((J43-G56)*(1-D56))+E23),E54+(J43-G56)),0) -> 0
B46: Transfer can not exceed 25% Resources Available | C46: =IF(C27*0.25<C45,"Exceeds 25%","") ->  | D46: =IF(D27*0.25<D45,"Exceeds 25%","") ->  | E46: =IF(E27*0.25+E57<E45,"Exceeds 25%","") ->  | G46: Expenditures Must Be Changed by: | J46: =IF(J43>0,J45-E54,0) -> 0
B47: Neighborhood Revitalization Rebate | E47: =nhood!E6 -> 
B48: Miscellaneous | G48: =CONCATENATE("Projected Carryover Into ",E1+1,"") -> Projected Carryover Into 2014
B49: Does misc. exceed 10% of Total Expenditures | C49: =IF(C50*0.1<C48,"Exceed 10% Rule","") ->  | D49: =IF(D50*0.1<D48,"Exceed 10% Rule","") ->  | E49: =IF(E50*0.1<E48,"Exceed 10% Rule","") -> 
B50: Total Expenditures | C50: =SUM(C29:C48) -> 350 | D50: =SUM(D29:D48) -> 10500 | E50: =SUM(E29:E43,E45,E47:E48) -> 38539 | G50: =D51 -> 38239 | H50: =CONCATENATE("",E1-1," Ending Cash Balance (est.)") -> 2012 Ending Cash Balance (est.)
B51: Unencumbered Cash Balance Dec 31 | C51: =C27-C50 -> 48439 | D51: =SUM(D27-D50) -> 38239 | E51: x | G51: =E26 -> 300 | H51: =CONCATENATE("",E1," Non-AV Receipts (est.)") -> 2013 Non-AV Receipts (est.)
B52: =CONCATENATE("",E1-2,"/",E1-1," Budget Authority Amount:") -> 2011/2012 Budget Authority Amount: | C52: =inputOth!B46 -> 48990 | D52: =inputPrYr!D16 -> 38615 | E52: x | G52: =IF(D56>0,E55,E57) -> 0 | H52: =CONCATENATE("",E1," Ad Valorem Tax (est.)") -> 2013 Ad Valorem Tax (est.) | K52: =IF(G52=E57,"","Note: Does not include Delinquent Taxes") -> 
C53: Non-Appropriated Balance | F53: =IF(E50/0.95-E50<E53,"Exceeds 5%","") ->  | G53: =SUM(G50:G52) -> 38539 | H53: =CONCATENATE("Total ",E1," Resources Available") -> Total 2013 Resources Available
B54: =CONCATENATE(C72," ",D72) ->  | C54: Total Expenditure/Non-Appr Balance | E54: =E50+E53 -> 38539
B55: =CONCATENATE(C73," ",D73) ->  | D55: Tax Required | E55: =IF(E54-E27>0,E54-E27,0) -> 0 | G55: =ROUND(C50*0.05+C50,0) -> 368 | H55: =CONCATENATE("Less ",E1-2," Expenditures + 5%") -> Less 2011 Expenditures + 5%
C56: Delinquent Comp Rate: | D56: =inputOth!$E$40 -> 0 | E56: =ROUND(IF(D56>0,(E55*D56),0),0) -> 0 | G56: =G53-G55 -> 38171 | H56: =CONCATENATE("Projected ",E1+1," Carryover (est.)") -> Projected 2014 Carryover (est.)
C57: =CONCATENATE("Amount of ",$E$1-1," Ad Valorem Tax") -> Amount of 2012 Ad Valorem Tax | E57: =E55+E56 -> 0
G58: Mill Rate Comparison
G60: =summ!I16 ->  | H60: =CONCATENATE("",E1," Fund Mill Rate") -> 2013 Fund Mill Rate
B61: Page No. | C61: =IF(inputPrYr!D18>0,7,6) -> 6 | G61: =summ!F16 ->  | H61: =CONCATENATE("",E1-1," Fund Mill Rate") -> 2012 Fund Mill Rate
G62: =summ!I22 -> 1.174 | H62: =CONCATENATE("Total ",E1," Mill Rate") -> Total 2013 Mill Rate
G63: =summ!F22 -> 0.923 | H63: =CONCATENATE("Total ",E1-1," Mill Rate") -> Total 2012 Mill Rate
C72: =IF(C50>C52,"See Tab A","") ->  | D72: =IF(D50>D52,"See Tab C","") -> 
C73: =IF(C51<0,"See Tab B","") ->  | D73: =IF(D51<0,"See Tab D","") -> 

Sheet DebtSvs-Library
B1: =inputPrYr!D2 -> Garden City Township | E1: =inputPrYr!D5 -> 2013
B3: FUND PAGE FOR FUNDS WITH A TAX LEVY
B4: Adopted Budget | C4: Prior Year | D4: Current Year | E4: Proposed Budget
B5: =inputPrYr!B17 -> Debt Service | C5: =CONCATENATE("Actual for ",$E$1-2,"") -> Actual for 2011 | D5: =CONCATENATE("Estimate for ",$E$1-1,"") -> Estimate for 2012 | E5: =CONCATENATE("Year for ",$E$1,"") -> Year for 2013
B6: Unencumbered Cash Balance Jan 1 | D6: =C34 -> 0 | E6: =D34 -> 0
B7: Receipts:
B8: Ad Valorem Tax | D8: =IF(inputPrYr!H15>0,inputPrYr!G19,inputPrYr!E19) -> 0 | E8: x
B9: Delinquent Tax
B10: Motor Vehicle Tax | E10: =mvalloc!G12 -> 0
B11: Recreational Vehicle Tax | E11: =mvalloc!I12 -> 0
B12: 16/20M Vehicle Tax | E12: =mvalloc!J12 -> 0
B17: Interest on Idle Funds
B18: Miscellaneous
B19: Does misc. exceed 10% of Total Receipts | C19: =IF(C20*0.1<C18,"Exceed 10% Rule","") ->  | D19: =IF(D20*0.1<D18,"Exceeds 10% Rule","") ->  | E19: =IF(E20*0.1<E18,"Exceed 10% Rule","") -> 
B20: Total Receipts | C20: =SUM(C8:C18) -> 0 | D20: =SUM(D8:D18) -> 0 | E20: =SUM(E9:E18) -> 0
B21: Resources Available: | C21: =C6+C20 -> 0 | D21: =D6+D20 -> 0 | E21: =E6+E20 -> 0
B22: Expenditures:
G24: =CONCATENATE("Desired Carryover Into ",E1+1,"") -> Desired Carryover Into 2014
G26: Desired Carryover Amount: | J26: 0
G27: Estimated Mill Rate Impact: | J27: =IF(J26=0,"",ROUND((J26+E40-G39)/inputOth!E7*1000,3)-G44) -> 
G28: =CONCATENATE("",E1," Tot Exp/Non-Appr Must Be:") -> 2013 Tot Exp/Non-Appr Must Be: | J28: =IF(J26>0,IF(E37<E21,IF(J26=G39,E37,((J26-G39)*(1-D39))+E21),E37+(J26-G39)),0) -> 0
G29: Expenditures Must Be Changed by: | J29: =IF(J26>0,J28-E37,0) -> 0
B30: Neighborhood Revitalization Rebate | E30: =nhood!E7 -> 
B31: Miscellaneous | G31: =CONCATENATE("Projected Carryover Into ",E1+1,"") -> Projected Carryover Into 2014
B32: Does misc. exceed 10% of Total Expenditures | C32: =IF(C33*0.1<C31,"Exceed 10% Rule","") ->  | D32: =IF(D33*0.1<D31,"Exceed 10% Rule","") ->  | E32: =IF(E33*0.1<E31,"Exceed 10% Rule","") -> 
B33: Total Expenditures | C33: =SUM(C23:C31) -> 0 | D33: =SUM(D23:D31) -> 0 | E33: =SUM(E23:E31) -> 0 | G33: =D34 -> 0 | H33: =CONCATENATE("",E1-1," Ending Cash Balance (est.)") -> 2012 Ending Cash Balance (est.)
B34: Unencumbered Cash Balance Dec 31 | C34: =C21-C33 -> 0 | D34: =D21-D33 -> 0 | E34: x | G34: =E20 -> 0 | H34: =CONCATENATE("",E1," Non-AV Receipts (est.)") -> 2013 Non-AV Receipts (est.)
B35: =CONCATENATE("",E1-2,"/",E1-1," Budget Authority Amount:") -> 2011/2012 Budget Authority Amount: | C35: =inputOth!B47 -> 0 | D35: =inputPrYr!D17 -> 0 | E35: x | G35: =IF(E39>0,E38,E40) -> 0 | H35: =CONCATENATE("",E1," Ad Valorem Tax (est.)") -> 2013 Ad Valorem Tax (est.) | K35: =IF(G35=E40,"","Note: Does not include Delinquent Taxes") -> 
C36: Non-Appropriated Balance | F36: =IF(E33/0.95-E33<E36,"Exceeds 5%","") ->  | G36: =SUM(G33:G35) -> 0 | H36: =CONCATENATE("Total ",E1," Resources Available") -> Total 2013 Resources Available
B37: =CONCATENATE(C93," ",D93) ->  | C37: Total Expenditure/Non-Appr Balance | E37: =E33+E36 -> 0
B38: =CONCATENATE(C94," ",D94) ->  | D38: Tax Required | E38: =IF(E37-E21>0,E37-E21,0) -> 0 | G38: =C33 -> 0 | H38: =CONCATENATE("Less ",E1-2," Expenditures") -> Less 2011 Expenditures
C39: Delinquent Comp Rate: | D39: =inputOth!E40 -> 0 | E39: =ROUND(IF(D39>0,(E38*D39),0),0) -> 0 | G39: =G36-G38 -> 0 | H39: =CONCATENATE("Projected ",E1+1," carryover (est.)") -> Projected 2014 carryover (est.)
C40: =CONCATENATE("Amount of ",E1-1," Ad Valorem Tax") -> Amount of 2012 Ad Valorem Tax | E40: =SUM(E38:E39) -> 0
G41: Mill Rate Comparison
G43: =summ!I17 ->  | H43: =CONCATENATE("",E1," Fund Mill Rate") -> 2013 Fund Mill Rate
B44: Adopted Budget | C44: Prior Year | D44: Current Year | E44: Proposed Budget | G44: =summ!F17 ->  | H44: =CONCATENATE("",E1-1," Fund Mill Rate") -> 2012 Fund Mill Rate
B45: =inputPrYr!B18 -> Library | C45: =CONCATENATE("Actual for ",$E$1-2,"") -> Actual for 2011 | D45: =CONCATENATE("Estimate for ",$E$1-1,"") -> Estimate for 2012 | E45: =CONCATENATE("Year for ",$E$1,"") -> Year for 2013 | G45: =summ!I22 -> 1.174 | H45: =CONCATENATE("Total ",E1," Mill Rate") -> Total 2013 Mill Rate
B46: Unencumbered Cash Balance Jan 1 | C46: 0 | D46: =C74 -> 0 | E46: =D74 -> 77801 | G46: =summ!F22 -> 0.923 | H46: =CONCATENATE("Total ",E1-1," Mill Rate") -> Total 2012 Mill Rate
B47: Receipts:
B48: Ad Valorem Tax | D48: =IF(inputPrYr!H15>0,inputPrYr!G20,inputPrYr!E20) -> 77801 | E48: x
B49: Delinquent Tax
B50: Motor Vehicle Tax | E50: =mvalloc!G13 -> 0
B51: Recreational Vehicle Tax | E51: =mvalloc!I13 -> 0
B52: 16/20M Vehicle Tax | E52: =mvalloc!J13 -> 0
B57: Interest on Idle Funds
B58: Miscellaneous
B59: Does misc. exceed 10% of Total Receipts | C59: =IF(C60*0.1<C58,"Exceed 10% Rule","") ->  | D59: =IF(D60*0.1<D58,"Exceeds 10% Rule","") ->  | E59: =IF(E60*0.1<E58,"Exceed 10% Rule","") -> 
B60: Total Receipts | C60: =SUM(C48:C58) -> 0 | D60: =SUM(D48:D58) -> 77801 | E60: =SUM(E49:E58) -> 0
B61: Resources Available: | C61: =C46+C60 -> 0 | D61: =D46+D60 -> 77801 | E61: =E46+E60 -> 77801
B62: Expenditures:
G64: =CONCATENATE("Desired Carryover Into ",E1+1,"") -> Desired Carryover Into 2014
G66: Desired Carryover Amount: | J66: 0
G67: Estimated Mill Rate Impact: | J67: =IF(J66=0,"",ROUND((J66+E80-G79)/inputOth!E7*1000,3)-G84) -> 
G68: =CONCATENATE("",E1," Tot Exp/Non-Appr Must Be:") -> 2013 Tot Exp/Non-Appr Must Be: | J68: =IF(J66>0,IF(E77<E61,IF(J66=G79,E77,((J66-G79)*(1-D79))+E61),E77+(J66-G79)),0) -> 0
G69: Expenditures Must Be Changed by: | J69: =IF(J66>0,J68-E77,0) -> 0
B70: Neighborhood Revitalization Rebate | E70: =nhood!E8 -> 
B71: Miscellaneous | G71: =CONCATENATE("Projected Carryover Into ",E1+1,"") -> Projected Carryover Into 2014
B72: Does misc. exceed 10% of Total Expenditures | C72: =IF(C73*0.1<C71,"Exceed 10% Rule","") ->  | D72: =IF(D73*0.1<D71,"Exceed 10% Rule","") ->  | E72: =IF(E73*0.1<E71,"Exceed 10% Rule","") -> 
B73: Total Expenditures | C73: =SUM(C63:C71) -> 0 | D73: =SUM(D63:D71) -> 0 | E73: =SUM(E63:E71) -> 0 | G73: =D74 -> 77801 | H73: =CONCATENATE("",E1-1," Ending Cash Balance (est.)") -> 2012 Ending Cash Balance (est.)
B74: Unencumbered Cash Balance Dec 31 | C74: =C61-C73 -> 0 | D74: =D61-D73 -> 77801 | E74: x | G74: =E60 -> 0 | H74: =CONCATENATE("",E1," Non-AV Receipts (est.)") -> 2013 Non-AV Receipts (est.)
B75: =CONCATENATE("",E1-2,"/",E1-1," Budget Authority Amount:") -> 2011/2012 Budget Authority Amount: | C75: =inputOth!B48 -> 0 | D75: =inputPrYr!D18 -> 0 | E75: x | G75: =IF(E79>0,E78,E80) -> 0 | H75: =CONCATENATE("",E1," Ad Valorem Tax (est.)") -> 2013 Ad Valorem Tax (est.) | K75: =IF(G75=E80,"","Note: Does not include Delinquent Taxes") -> 
C76: Non-Appropriated Balance | F76: =IF(E73/0.95-E73<E76,"Exceeds 5%","") ->  | G76: =SUM(G73:G75) -> 77801 | H76: =CONCATENATE("Total ",E1," Resources Available") -> Total 2013 Resources Available
B77: =CONCATENATE(C95," ",D95) ->  | C77: Total Expenditure/Non-Appr Balance | E77: =E73+E76 -> 0
B78: =CONCATENATE(C96," ",D96) ->  | D78: Tax Required | E78: =IF(E77-E61>0,E77-E61,0) -> 0 | G78: =ROUND(C73*0.05+C73,0) -> 0 | H78: =CONCATENATE("Less ",E1-2," Expenditures + 5%") -> Less 2011 Expenditures + 5%
C79: Delinquent Comp Rate: | D79: =inputOth!E40 -> 0 | E79: =ROUND(IF(E78>0,(E78*D79),0),0) -> 0 | G79: =G76-G78 -> 77801 | H79: =CONCATENATE("Projected ",E1+1," carryover (est.)") -> Projected 2014 carryover (est.)
C80: =CONCATENATE("Amount of ",E1-1," Ad Valorem Tax") -> Amount of 2012 Ad Valorem Tax | E80: =E78+E79 -> 0 | F80: =IF('Library Grant'!F33="","",IF('Library Grant'!F33="Qualify","Qualifies for State Library Grant","See 'Library Grant' tab")) -> 
G81: Mill Rate Comparison
B83: Page No. | G83: =summ!I18 ->  | H83: =CONCATENATE("",E1," Fund Mill Rate") -> 2013 Fund Mill Rate
G84: =summ!F18 ->  | H84: =CONCATENATE("",E1-1," Fund Mill Rate") -> 2012 Fund Mill Rate
G85: =summ!I22 -> 1.174 | H85: =CONCATENATE("Total ",E1," Mill Rate") -> Total 2013 Mill Rate
G86: =summ!F22 -> 0.923 | H86: =CONCATENATE("Total ",E1-1," Mill Rate") -> Total 2012 Mill Rate
C93: =IF(C33>C35,"See Tab A","") ->  | D93: =IF(D33>D35,"See Tab C","") -> 
C94: =IF(C34<0,"See Tab B","") ->  | D94: =IF(D34<0,"See Tab D","") -> 
C95: =IF(C73>C75,"See Tab A","") ->  | D95: =IF(D73>D75,"See Tab C","") -> 
C96: =IF(C74<0,"See Tab B","") ->  | D96: =IF(D74<0,"See Tab D","") -> 

Sheet road
B1: =inputPrYr!D2 -> Garden City Township | E1: =inputPrYr!D5 -> 2013
B3: FUND PAGE FOR FUNDS WITH A TAX LEVY
B4: Adopted Budget | C4: Prior Year | D4: Current Year | E4: Proposed Budget
B5: =inputPrYr!B19 -> Road | C5: =gen!C5 -> Actual for 2011 | D5: =gen!D5 -> Estimate for 2012 | E5: =gen!E5 -> Year for 2013
B6: Unencumbered Cash Balance January 1 | D6: =C44 -> 0 | E6: =D44 -> 0
B7: Receipts:
B8: Ad Valorem Tax | D8: =IF(inputPrYr!H15>0,inputPrYr!G19,inputPrYr!E19) -> 0 | E8: x
B9: Delinquent Tax
B10: Motor Vehicle Tax | E10: =mvalloc!G14 -> 0
B11: Recreational Vehicle Tax | E11: =mvalloc!I14 -> 0
B12: 16/20M Vehicle Tax | E12: =mvalloc!J14 -> 0
B13: Special Highway/Gasoline Tax | E13: =inputOth!E36 -> 0
B20: Interest on Idle Funds
B21: Miscellaneous
B22: Does miscellaneous exceed 10% of Total Receipts | C22: =IF(C23*0.1<C21,"Exceed 10% Rule","") ->  | D22: =IF(D23*0.1<D21,"Exceed 10% Rule","") ->  | E22: =IF(E23*0.1+E50<E21,"Exceed 10% Rule","") -> 
B23: Total Receipts | C23: =SUM(C8:C21) -> 0 | D23: =SUM(D8:D21) -> 0 | E23: =SUM(E8:E21) -> 0
B24: Resources Available: | C24: =C23+C6 -> 0 | D24: =D23+D6 -> 0 | E24: =E23+E6 -> 0
B25: Expenditures:
B26: Salaries & Wages
B27: Employee Benefits
B28: Road Maintenance
B29: Road Materials
B30: Equipment
G34: =CONCATENATE("Desired Carryover Into ",E1+1,"") -> Desired Carryover Into 2014
G36: Desired Carryover Amount: | J36: 0
G37: Estimated Mill Rate Impact: | J37: =IF(J36=0,"",ROUND((J36+E50-G49)/inputOth!E7*1000,3)-G54) -> 
B38: Transfer to Special Machinery | G38: =CONCATENATE("",E1," Tot Exp/Non-Appr Must Be:") -> 2013 Tot Exp/Non-Appr Must Be: | J38: =IF(J36>0,IF(E47<E16,IF(J36=G49,E47,((J36-G49)*(1-D49))+E16),E47+(J36-G49)),0) -> 0
B39: Does transfer exceed 25% of Resources Available | C39: =IF(C24*0.25<C38,"Not Authorized","") ->  | D39: =IF(D24*0.25<D38,"Not Authorized","") ->  | E39: =IF(E24*0.25+E50<E38,"Not Authorized","") ->  | G39: Expenditures Must Be Changed by: | J39: =IF(J36>0,J38-E47,0) -> 0
B40: Neighborhood Revitalization Rebate | E40: =nhood!E9 -> 
B41: Miscellaneous | G41: =CONCATENATE("Projected Carryover Into ",E1+1,"") -> Projected Carryover Into 2014
B42: Does misc. exceed 10% of Total Expenditures | C42: =IF(C43*0.1<C41,"Exceed 10% Rule","") ->  | D42: =IF(D43*0.1<D41,"Exceed 10% Rule","") ->  | E42: =IF(E43*0.1<E41,"Exceed 10% Rule","") -> 
B43: Total Expenditures | C43: =SUM(C26:C38,C40:C41) -> 0 | D43: =SUM(D26:D38,D40:D41) -> 0 | E43: =SUM(E26:E38,E40:E41) -> 0 | G43: =D44 -> 0 | H43: =CONCATENATE("",E1-1," Ending Cash Balance (est.)") -> 2012 Ending Cash Balance (est.)
B44: Unencumbered Cash Balance Dec 31 | C44: =C24-C43 -> 0 | D44: =D24-D43 -> 0 | E44: x | G44: =E23 -> 0 | H44: =CONCATENATE("",E1," Non-AV Receipts (est.)") -> 2013 Non-AV Receipts (est.)
B45: =CONCATENATE("",E1-2,"/",E1-1," Budget Authority Amount:") -> 2011/2012 Budget Authority Amount: | C45: =inputOth!B49 -> 0 | D45: =inputPrYr!D19 -> 0 | E45: x | G45: =IF(D49>0,E48,E50) -> 0 | H45: =CONCATENATE("",E1," Ad Valorem Tax (est.)") -> 2013 Ad Valorem Tax (est.) | K45: =IF(G45=E50,"","Note: Does not include Delinquent Taxes") -> 
C46: Non-Appropriated Balance | F46: =IF(E43/0.95-E43<E46,"Exceeds 5%","") ->  | G46: =SUM(G43:G45) -> 0 | H46: =CONCATENATE("Total ",E1," Resources Available") -> Total 2013 Resources Available
B47: =CONCATENATE(C74," ",D74) ->  | C47: Total Expenditure/Non-Appr Balance | E47: =E43+E46 -> 0
B48: =CONCATENATE(C75," ",D75) ->  | D48: Tax Required | E48: =IF(E47-E24>0,E47-E24,0) -> 0 | G48: =ROUND(C43*0.05+C43,0) -> 0 | H48: =CONCATENATE("Less ",E1-2," Expenditures + 5%") -> Less 2011 Expenditures + 5%
C49: Delinquent Comp Rate: | D49: =inputOth!$E$40 -> 0 | E49: =ROUND(IF(D49>0,(E48*D49),0),0) -> 0 | G49: =G46-G48 -> 0 | H49: =CONCATENATE("Projected ",E1+1," Carryover (est.)") -> Projected 2014 Carryover (est.)
C50: =CONCATENATE("Amount of ",$E$1-1," Ad Valorem Tax") -> Amount of 2012 Ad Valorem Tax | E50: =E48+E49 -> 0
G51: Mill Rate Comparison
B53: Special Machinery | G53: =summ!I19 ->  | H53: =CONCATENATE("",E1," Fund Mill Rate") -> 2013 Fund Mill Rate
B54: K.S.A. 68-141g | C54: =CONCATENATE("",E1-2," Actual Year") -> 2011 Actual Year | G54: =summ!F19 ->  | H54: =CONCATENATE("",E1-1," Fund Mill Rate") -> 2012 Fund Mill Rate
B55: Unencumbered Cash Balance, Jan 1 | G55: =summ!I22 -> 1.174 | H55: =CONCATENATE("Total ",E1," Mill Rate") -> Total 2013 Mill Rate
B56: Transfers from: | G56: =summ!F22 -> 0.923 | H56: =CONCATENATE("Total ",E1-1," Mill Rate") -> Total 2012 Mill Rate
B57: Road Fund | C57: =C38 -> 0
B58: General Fund(No Levy) | C58: =gen!C43 -> 0 | D58: =IF(AND(C58>0,C59>0),"Not Auth. Two General Transfers - Only One","") -> 
B59: General Fund(Gen has Levy) | C59: =gen!C45 -> 0
B61: Interest on Idle Funds
B62: Other
B63: Resources Available: | C63: =SUM(C55:C62) -> 0
B64: Total Expenditures
B65: Unencumbered Cash Balance, Dec 31 | C65: =SUM(C63-C64) -> 0
B67: Page No.
C74: =IF(C43>C45,"See Tab A","") ->  | D74: =IF(D43>D45,"See Tab C","") -> 
C75: =IF(C44<0,"See Tab B","") ->  | D75: =IF(D44<0,"See Tab D","") -> 

Sheet levypage9
B1: =inputPrYr!D2 -> Garden City Township | E1: =inputPrYr!D5 -> 2013
B3: FUND PAGE FOR FUNDS WITH A TAX LEVY
B4: Adopted Budget | C4: Prior Year | D4: Current Year | E4: Proposed Budget
B5: =inputPrYr!B20 -> Fire | C5: =gen!C5 -> Actual for 2011 | D5: =gen!D5 -> Estimate for 2012 | E5: =gen!E5 -> Year for 2013
B6: Unencumbered Cash Balance January 1 | C6: 91897 | D6: =C34 -> 91901 | E6: =D34 -> 81080
B7: Receipts:
B8: Ad Valorem Tax | C8: 86188 | D8: =IF(inputPrYr!H15>0,inputPrYr!G20,inputPrYr!E20) -> 77801 | E8: x
B9: Delinquent Tax | C9: 2315
B10: Motor Vehicle Tax | C10: 10028 | D10: 10504 | E10: =mvalloc!G15 -> 7970
B11: Recreational Vehicle Tax | C11: 170 | D11: 197 | E11: =mvalloc!I15 -> 133
B12: 16/20 M Vehicle Tax | C12: 391 | D12: 438 | E12: =mvalloc!J15 -> 438
B13: Rental Excise Tax | C13: 26
B14: In Lieu of Tax | C14: 3267 | D14: 6239 | E14: 2263
B17: Interest on Idle Funds
B18: Miscellaneous
B19: Does miscellaneous exceed 10% of Total Receipts | C19: =IF(C20*0.1<C18,"Exceed 10% Rule","") ->  | D19: =IF(D20*0.1<D18,"Exceed 10% Rule","") ->  | E19: =IF(E20*0.1+E40<E18,"Exceed 10% Rule","") -> 
B20: Total Receipts | C20: =SUM(C8:C18) -> 102385 | D20: =SUM(D8:D18) -> 95179 | E20: =SUM(E8:E18) -> 10804
B21: Resources Available: | C21: =C20+C6 -> 194282 | D21: =D20+D6 -> 187080 | E21: =E20+E6 -> 91884
B22: Expenditures:
B23: Fire Contract | C23: 82381 | D23: 86000 | E23: 90000
B24: Equipment | C24: 20000 | D24: 20000 | E24: 100000 | G24: =CONCATENATE("Desired Carryover Into ",E1+1,"") -> Desired Carryover Into 2014
G26: Desired Carryover Amount: | J26: 0
G27: Estimated Mill Rate Impact: | J27: =IF(J26=0,"",ROUND((J26+E40-G39)/inputOth!E7*1000,3)-G44) -> 
G28: =CONCATENATE("",E1," Tot Exp/Non-Appr Must Be:") -> 2013 Tot Exp/Non-Appr Must Be: | J28: =IF(J26>0,IF(E37<E21,IF(J26=G39,E37,((J26-G39)*(1-D39))+E21),E37+(J26-G39)),0) -> 0
G29: Expenditures Must Be Changed by: | J29: =IF(J26>0,J28-E37,0) -> 0
B30: Neighborhood Revitalization Rebate | E30: =nhood!E10 -> 
B31: Miscellaneous | G31: =CONCATENATE("Projected Carryover Into ",E1+1,"") -> Projected Carryover Into 2014
B32: Does misc. exceed 10% of Total Expenditures | C32: =IF(C33*0.1<C31,"Exceed 10% Rule","") ->  | D32: =IF(D33*0.1<D31,"Exceed 10% Rule","") ->  | E32: =IF(E33*0.1<E31,"Exceed 10% Rule","") -> 
B33: Total Expenditures | C33: =SUM(C23:C31) -> 102381 | D33: =SUM(D23:D31) -> 106000 | E33: =SUM(E23:E31) -> 190000 | G33: =D34 -> 81080 | H33: =CONCATENATE("",E1-1," Ending Cash Balance (est.)") -> 2012 Ending Cash Balance (est.)
B34: Unencumbered Cash Balance Dec 31 | C34: =C21-C33 -> 91901 | D34: =D21-D33 -> 81080 | E34: x | G34: =E20 -> 10804 | H34: =CONCATENATE("",E1," Non-AV Receipts (est.)") -> 2013 Non-AV Receipts (est.)
B35: =CONCATENATE("",E1-2,"/",E1-1," Budget Authority Amount:") -> 2011/2012 Budget Authority Amount: | C35: =inputOth!B50 -> 165000 | D35: =inputPrYr!D20 -> 200000 | E35: x | G35: =IF(E39>0,E38,E40) -> 98116 | H35: =CONCATENATE("",E1," Ad Valorem Tax (est.)") -> 2013 Ad Valorem Tax (est.) | K35: =IF(G35=E40,"","Note: Does not include Delinquent Taxes") -> 
C36: Non-Appropriated Balance | F36: =IF(E33/0.95-E33<E36,"Exceeds 5%","") ->  | G36: =SUM(G33:G35) -> 190000 | H36: =CONCATENATE("Total ",E1," Resources Available") -> Total 2013 Resources Available
B37: =CONCATENATE(C92," ",D92) ->  | C37: Total Expenditure/Non-Appr Balance | E37: =E33+E36 -> 190000
B38: =CONCATENATE(C93," ",D93) ->  | D38: Tax Required | E38: =IF(E37-E21>0,E37-E21,0) -> 98116 | G38: =C33*0.05+C33 -> 107500.05 | H38: =CONCATENATE("Less ",E1-2," Expenditures + 5%") -> Less 2011 Expenditures + 5%
C39: Delinquent Comp Rate: | D39: =inputOth!$E$40 -> 0 | E39: =ROUND(IF(D39>0,(E38*D39),0),0) -> 0 | G39: =G36-G38 -> 82499.95 | H39: =CONCATENATE("Projected ",E1+1," carryover (est.)") -> Projected 2014 carryover (est.)
C40: =CONCATENATE("Amount of ",$E$1-1," Ad Valorem Tax") -> Amount of 2012 Ad Valorem Tax | E40: =E38+E39 -> 98116
G41: Mill Rate Comparison
B43: Adopted Budget | G43: =summ!I20 -> 1.174 | H43: =CONCATENATE("",E1," Fund Mill Rate") -> 2013 Fund Mill Rate
C44: Prior Year | D44: Current Year | E44: Proposed Budget | G44: =summ!F20 -> 0.923 | H44: =CONCATENATE("",E1-1," Fund Mill Rate") -> 2012 Fund Mill Rate
B45: =inputPrYr!B21 -> 0 | C45: =C5 -> Actual for 2011 | D45: =D5 -> Estimate for 2012 | E45: =E5 -> Year for 2013 | G45: =summ!I22 -> 1.174 | H45: =CONCATENATE("Total ",E1," Mill Rate") -> Total 2013 Mill Rate
B46: Unencumbered Cash Balance January 1 | D46: =C74 -> 0 | E46: =D74 -> 0 | G46: =summ!F22 -> 0.923 | H46: =CONCATENATE("Total ",E1-1," Mill Rate") -> Total 2012 Mill Rate
B47: Receipts:
B48: Ad Valorem Tax | D48: =IF(inputPrYr!H15>0,inputPrYr!G21,inputPrYr!E21) -> 0 | E48: x
B49: Delinquent Tax
B50: Motor Vehicle Tax | E50: =mvalloc!G16 -> 0
B51: Recreational Vehicle Tax | E51: =mvalloc!I16 -> 0
B52: 16/20M Vehicle Tax | E52: =mvalloc!J16 -> 0
B57: Interest on Idle Funds
B58: Miscellaneous
B59: Does miscellaneous exceed 10% of Total Receipts | C59: =IF(C60*0.1<C58,"Exceed 10% Rule","") ->  | D59: =IF(D60*0.1<D58,"Exceed 10% Rule","") ->  | E59: =IF(E60*0.1+E80<E58,"Exceed 10% Rule","") -> 
B60: Total Receipts | C60: =SUM(C48:C58) -> 0 | D60: =SUM(D48:D58) -> 0 | E60: =SUM(E48:E58) -> 0
B61: Resources Available: | C61: =C60+C46 -> 0 | D61: =D60+D46 -> 0 | E61: =E60+E46 -> 0
B62: Expenditures:
G64: =CONCATENATE("Desired Carryover Into ",E1+1,"") -> Desired Carryover Into 2014
G66: Desired Carryover Amount: | J66: 0
G67: Estimated Mill Rate Impact: | J67: =IF(J66=0,"",ROUND((J66+E80-G79)/inputOth!E7*1000,3)-G84) -> 
G68: =CONCATENATE("",E1," Tot Exp/Non-Appr Must Be:") -> 2013 Tot Exp/Non-Appr Must Be: | J68: =IF(J66>0,IF(E77<E61,IF(J66=G79,E77,((J66-G79)*(1-D79))+E61),E77+(J66-G79)),0) -> 0
G69: Expenditures Must Be Changed by: | J69: =IF(J66>0,J68-E77,0) -> 0
B70: Neighborhood Revitalization Rebate | E70: =nhood!E11 -> 
B71: Miscellaneous | G71: =CONCATENATE("Projected Carryover Into ",E1+1,"") -> Projected Carryover Into 2014
B72: Does misc. exceed 10% of Total Expenditures | C72: =IF(C73*0.1<C71,"Exceed 10% Rule","") ->  | D72: =IF(D73*0.1<D71,"Exceed 10% Rule","") ->  | E72: =IF(E73*0.1<E71,"Exceed 10% Rule","") -> 
B73: Total Expenditures | C73: =SUM(C63:C71) -> 0 | D73: =SUM(D63:D71) -> 0 | E73: =SUM(E63:E71) -> 0 | G73: =D74 -> 0 | H73: =CONCATENATE("",E1-1," Ending Cash Balance (est.)") -> 2012 Ending Cash Balance (est.)
B74: Unencumbered Cash Balance Dec 31 | C74: =C61-C73 -> 0 | D74: =D61-D73 -> 0 | E74: x | G74: =E60 -> 0 | H74: =CONCATENATE("",E1," Non-AV Receipts (est.)") -> 2013 Non-AV Receipts (est.)
B75: =CONCATENATE("",E1-2,"/",E1-1," Budget Authority Amount:") -> 2011/2012 Budget Authority Amount: | C75: =inputOth!B51 -> 0 | D75: =inputPrYr!D21 -> 0 | E75: x | G75: =IF(E79>0,E78,E80) -> 0 | H75: =CONCATENATE("",E1," Ad Valorem Tax (est.)") -> 2013 Ad Valorem Tax (est.) | K75: =IF(G75=E80,"","Note: Does not include Delinquent Taxes") -> 
C76: Non-Appropriated Balance | F76: =IF(E73/0.95-E73<E76,"Exceeds 5%","") ->  | G76: =SUM(G73:G75) -> 0 | H76: =CONCATENATE("Total ",E1," Resources Available") -> Total 2013 Resources Available
B77: =CONCATENATE(C94," ",D94) ->  | C77: Total Expenditure/Non-Appr Balance | E77: =E73+E76 -> 0
B78: =CONCATENATE(C95," ",D95) ->  | D78: Tax Required | E78: =IF(E77-E61>0,E77-E61,0) -> 0 | G78: =ROUND(C73*0.05+C73,0) -> 0 | H78: =CONCATENATE("Less ",E1-2," Expenditures + 5%") -> Less 2011 Expenditures + 5%
C79: Delinquent Comp Rate: | D79: =inputOth!$E$40 -> 0 | E79: =ROUND(IF(D79>0,(E78*D79),0),0) -> 0 | G79: =G76-G78 -> 0 | H79: =CONCATENATE("Projected ",E1+1," carryover (est.)") -> Projected 2014 carryover (est.)
C80: =CONCATENATE("Amount of ",$E$1-1," Ad Valorem Tax") -> Amount of 2012 Ad Valorem Tax | E80: =E78+E79 -> 0
B81: Page No. | C81: 7 | G81: Mill Rate Comparison
G83: =summ!#REF! ->  | H83: =CONCATENATE("",E1," Fund Mill Rate") -> 2013 Fund Mill Rate
G84: =summ!#REF! ->  | H84: =CONCATENATE("",E1-1," Fund Mill Rate") -> 2012 Fund Mill Rate
G85: =summ!I22 -> 1.174 | H85: =CONCATENATE("Total ",E1," Mill Rate") -> Total 2013 Mill Rate
G86: =summ!F22 -> 0.923 | H86: =CONCATENATE("Total ",E1-1," Mill Rate") -> Total 2012 Mill Rate
C92: =IF(C33>C35,"See Tab A","") ->  | D92: =IF(D33>D35,"See Tab C","") -> 
C93: =IF(C34<0,"See Tab B","") ->  | D93: =IF(D34<0,"See Tab D","") -> 
C94: =IF(C73>C75,"See Tab A","") ->  | D94: =IF(D73>D75,"See Tab C","") -> 
C95: =IF(C74<0,"See Tab B","") ->  | D95: =IF(D74<0,"See Tab D","") -> 

Sheet levypage10
B1: =inputPrYr!D2 -> Garden City Township | E1: =inputPrYr!D5 -> 2013
B3: FUND PAGE FOR FUNDS WITH A TAX LEVY
B4: Adopted Budget | C4: Prior Year | D4: Current Year | E4: Proposed Budget
B5: =inputPrYr!B22 -> 0 | C5: =gen!C5 -> Actual for 2011 | D5: =gen!D5 -> Estimate for 2012 | E5: =gen!E5 -> Year for 2013
B6: Unencumbered Cash Balance January 1 | D6: =C34 -> 0 | E6: =D34 -> 0
B7: Receipts:
B8: Ad Valorem Tax | D8: =IF(inputPrYr!H15>0,inputPrYr!G22,inputPrYr!E22) -> 0 | E8: x
B9: Delinquent Tax
B10: Motor Vehicle Tax | E10: =mvalloc!G17 -> 0
B11: Recreational Vehicle Tax | E11: =mvalloc!I17 -> 0
B12: 16/20M Vehicle Tax | E12: =mvalloc!J17 -> 0
B17: Interest on Idle Funds
B18: Miscellaneous
B19: Does miscellaneous exceed 10% of Total Receipts | C19: =IF(C20*0.1<C18,"Exceed 10% Rule","") ->  | D19: =IF(D20*0.1<D18,"Exceed 10% Rule","") ->  | E19: =IF(E20*0.1+E40<E18,"Exceed 10% Rule","") -> 
B20: Total Receipts | C20: =SUM(C8:C18) -> 0 | D20: =SUM(D8:D18) -> 0 | E20: =SUM(E8:E18) -> 0
B21: Resources Available: | C21: =C20+C6 -> 0 | D21: =D20+D6 -> 0 | E21: =E20+E6 -> 0
B22: Expenditures:
G24: =CONCATENATE("Desired Carryover Into ",E1+1,"") -> Desired Carryover Into 2014
G26: Desired Carryover Amount: | J26: 0
G27: Estimated Mill Rate Impact: | J27: =IF(J26=0,"",ROUND((J26+E40-G39)/inputOth!E7*1000,3)-G44) -> 
G28: =CONCATENATE("",E1," Tot Exp/Non-Appr Must Be:") -> 2013 Tot Exp/Non-Appr Must Be: | J28: =IF(J26>0,IF(E37<E21,IF(J26=G39,E37,((J26-G39)*(1-D39))+E21),E37+(J26-G39)),0) -> 0
G29: Expenditures Must Be Changed by: | J29: =IF(J26>0,J28-E37,0) -> 0
B30: Neighborhood Revitalization Rebate | E30: =nhood!E12 -> 
B31: Miscellaneous | G31: =CONCATENATE("Projected Carryover Into ",E1+1,"") -> Projected Carryover Into 2014
B32: Does misc. exceed 10% of Total Expenditures | C32: =IF(C33*0.1<C31,"Exceed 10% Rule","") ->  | D32: =IF(D33*0.1<D31,"Exceed 10% Rule","") ->  | E32: =IF(E33*0.1<E31,"Exceed 10% Rule","") -> 
B33: Total Expenditures | C33: =SUM(C23:C31) -> 0 | D33: =SUM(D23:D31) -> 0 | E33: =SUM(E23:E31) -> 0 | G33: =D34 -> 0 | H33: =CONCATENATE("",E1-1," Ending Cash Balance (est.)") -> 2012 Ending Cash Balance (est.)
B34: Unencumbered Cash Balance Dec 31 | C34: =C21-C33 -> 0 | D34: =D21-D33 -> 0 | E34: x | G34: =E20 -> 0 | H34: =CONCATENATE("",E1," Non-AV Receipts (est.)") -> 2013 Non-AV Receipts (est.)
B35: =CONCATENATE("",E1-2,"/",E1-1," Budget Authority Amount:") -> 2011/2012 Budget Authority Amount: | C35: =inputOth!B52 -> 0 | D35: =inputPrYr!D22 -> 0 | E35: x | G35: =IF(E39>0,E38,E40) -> 0 | H35: =CONCATENATE("",E1," Ad Valorem Tax (est.)") -> 2013 Ad Valorem Tax (est.) | K35: =IF(G35=E40,"","Note: Does not include Delinquent Taxes") -> 
C36: Non-Appropriated Balance | F36: =IF(E33/0.95-E33<E36,"Exceeds 5%","") ->  | G36: =SUM(G33:G35) -> 0 | H36: =CONCATENATE("Total ",E1," Resources Available") -> Total 2013 Resources Available
B37: =CONCATENATE(C92," ",D92) ->  | C37: Total Expenditure/Non-Appr Balance | E37: =E33+E36 -> 0
B38: =CONCATENATE(C93," ",D93) ->  | D38: Tax Required | E38: =IF(E37-E21>0,E37-E21,0) -> 0 | G38: =C33*0.05+C33 -> 0 | H38: =CONCATENATE("Less ",E1-2," Expenditures + 5%") -> Less 2011 Expenditures + 5%
C39: Delinquent Comp Rate: | D39: =inputOth!$E$40 -> 0 | E39: =ROUND(IF(D39>0,(E38*D39),0),0) -> 0 | G39: =G36-G38 -> 0 | H39: =CONCATENATE("Projected ",E1+1," carryover (est.)") -> Projected 2014 carryover (est.)
C40: =CONCATENATE("Amount of ",$E$1-1," Ad Valorem Tax") -> Amount of 2012 Ad Valorem Tax | E40: =E38+E39 -> 0
G41: Mill Rate Comparison
B43: Adopted Budget | G43: =summ!#REF! ->  | H43: =CONCATENATE("",E1," Fund Mill Rate") -> 2013 Fund Mill Rate
C44: Prior Year | D44: Current Year | E44: Proposed Budget | G44: =summ!#REF! ->  | H44: =CONCATENATE("",E1-1," Fund Mill Rate") -> 2012 Fund Mill Rate
B45: =inputPrYr!B23 -> 0 | C45: =C5 -> Actual for 2011 | D45: =D5 -> Estimate for 2012 | E45: =E5 -> Year for 2013 | G45: =summ!I22 -> 1.174 | H45: =CONCATENATE("Total ",E1," Mill Rate") -> Total 2013 Mill Rate
B46: Unencumbered Cash Balance January 1 | D46: =C74 -> 0 | E46: =D74 -> 0 | G46: =summ!F22 -> 0.923 | H46: =CONCATENATE("Total ",E1-1," Mill Rate") -> Total 2012 Mill Rate
B47: Receipts:
B48: Ad Valorem Tax | D48: =IF(inputPrYr!H15>0,inputPrYr!G23,inputPrYr!E23) -> 0 | E48: x
B49: Delinquent Tax
B50: Motor Vehicle Tax | E50: =mvalloc!G18 -> 0
B51: Recreational Vehicle Tax | E51: =mvalloc!I18 -> 0
B52: 16/20M Vehicle Tax | E52: =mvalloc!J18 -> 0
B57: Interest on Idle Funds
B58: Miscellaneous
B59: Does miscellaneous exceed 10% of Total Receipts | C59: =IF(C60*0.1<C58,"Exceed 10% Rule","") ->  | D59: =IF(D60*0.1<D58,"Exceed 10% Rule","") ->  | E59: =IF(E60*0.1+E80<E58,"Exceed 10% Rule","") -> 
B60: Total Receipts | C60: =SUM(C48:C58) -> 0 | D60: =SUM(D48:D58) -> 0 | E60: =SUM(E48:E58) -> 0
B61: Resources Available: | C61: =C60+C46 -> 0 | D61: =D60+D46 -> 0 | E61: =E60+E46 -> 0
B62: Expenditures:
G64: =CONCATENATE("Desired Carryover Into ",E1+1,"") -> Desired Carryover Into 2014
G66: Desired Carryover Amount: | J66: 0
G67: Estimated Mill Rate Impact: | J67: =IF(J66=0,"",ROUND((J66+E80-G79)/inputOth!E7*1000,3)-G84) -> 
G68: =CONCATENATE("",E1," Tot Exp/Non-Appr Must Be:") -> 2013 Tot Exp/Non-Appr Must Be: | J68: =IF(J66>0,IF(E77<E61,IF(J66=G79,E77,((J66-G79)*(1-D79))+E61),E77+(J66-G79)),0) -> 0
G69: Expenditures Must Be Changed by: | J69: =IF(J66>0,J68-E77,0) -> 0
B70: Neighborhood Revitalization Rebate | E70: =nhood!E13 -> 
B71: Miscellaneous | G71: =CONCATENATE("Projected Carryover Into ",E1+1,"") -> Projected Carryover Into 2014
B72: Does misc. exceed 10% of Total Expenditures | C72: =IF(C73*0.1<C71,"Exceed 10% Rule","") ->  | D72: =IF(D73*0.1<D71,"Exceed 10% Rule","") ->  | E72: =IF(E73*0.1<E71,"Exceed 10% Rule","") -> 
B73: Total Expenditures | C73: =SUM(C63:C71) -> 0 | D73: =SUM(D63:D71) -> 0 | E73: =SUM(E63:E71) -> 0 | G73: =D74 -> 0 | H73: =CONCATENATE("",E1-1," Ending Cash Balance (est.)") -> 2012 Ending Cash Balance (est.)
B74: Unencumbered Cash Balance Dec 31 | C74: =C61-C73 -> 0 | D74: =D61-D73 -> 0 | E74: x | G74: =E60 -> 0 | H74: =CONCATENATE("",E1," Non-AV Receipts (est.)") -> 2013 Non-AV Receipts (est.)
B75: =CONCATENATE("",E1-2,"/",E1-1," Budget Authority Amount:") -> 2011/2012 Budget Authority Amount: | C75: =inputOth!B53 -> 0 | D75: =inputPrYr!D23 -> 0 | E75: x | G75: =IF(E79>0,E78,E80) -> 0 | H75: =CONCATENATE("",E1," Ad Valorem Tax (est.)") -> 2013 Ad Valorem Tax (est.) | K75: =IF(G75=E80,"","Note: Does not include Delinquent Taxes") -> 
C76: Non-Appropriated Balance | F76: =IF(E73/0.95-E73<E76,"Exceeds 5%","") ->  | G76: =SUM(G73:G75) -> 0 | H76: =CONCATENATE("Total ",E1," Resources Available") -> Total 2013 Resources Available
B77: =CONCATENATE(C94," ",D94) ->  | C77: Total Expenditure/Non-Appr Balance | E77: =E73+E76 -> 0
B78: =CONCATENATE(C95," ",D95) ->  | D78: Tax Required | E78: =IF(E77-E61>0,E77-E61,0) -> 0 | G78: =ROUND(C73*0.05+C73,0) -> 0 | H78: =CONCATENATE("Less ",E1-2," Expenditures + 5%") -> Less 2011 Expenditures + 5%
C79: Delinquent Comp Rate: | D79: =inputOth!$E$40 -> 0 | E79: =ROUND(IF(D79>0,(E78*D79),0),0) -> 0 | G79: =G76-G78 -> 0 | H79: =CONCATENATE("Projected ",E1+1," carryover (est.)") -> Projected 2014 carryover (est.)
C80: =CONCATENATE("Amount of ",$E$1-1," Ad Valorem Tax") -> Amount of 2012 Ad Valorem Tax | E80: =E78+E79 -> 0
B81: Page No. | G81: Mill Rate Comparison
G83: =summ!#REF! ->  | H83: =CONCATENATE("",E1," Fund Mill Rate") -> 2013 Fund Mill Rate
G84: =summ!#REF! ->  | H84: =CONCATENATE("",E1-1," Fund Mill Rate") -> 2012 Fund Mill Rate
G85: =summ!I22 -> 1.174 | H85: =CONCATENATE("Total ",E1," Mill Rate") -> Total 2013 Mill Rate
G86: =summ!F22 -> 0.923 | H86: =CONCATENATE("Total ",E1-1," Mill Rate") -> Total 2012 Mill Rate
C92: =IF(C33>C35,"See Tab A","") ->  | D92: =IF(D33>D35,"See Tab C","") -> 
C93: =IF(C34<0,"See Tab B","") ->  | D93: =IF(D34<0,"See Tab D","") -> 
C94: =IF(C73>C75,"See Tab A","") ->  | D94: =IF(D73>D75,"See Tab C","") -> 
C95: =IF(C74<0,"See Tab B","") ->  | D95: =IF(D74<0,"See Tab D","") -> 

Sheet levypage11
B1: =inputPrYr!D2 -> Garden City Township | E1: =inputPrYr!D5 -> 2013
B3: FUND PAGE FOR FUNDS WITH A TAX LEVY
B4: Adopted Budget | C4: Prior Year | D4: Current Year | E4: Proposed Budget
B5: =inputPrYr!B24 -> 0 | C5: =gen!C5 -> Actual for 2011 | D5: =gen!D5 -> Estimate for 2012 | E5: =gen!E5 -> Year for 2013
B6: Unencumbered Cash Balance January 1 | D6: =C34 -> 0 | E6: =D34 -> 0
B7: Receipts:
B8: Ad Valorem Tax | D8: =IF(inputPrYr!H15>0,inputPrYr!G24,inputPrYr!E24) -> 0 | E8: x
B9: Delinquent Tax
B10: Motor Vehicle Tax | E10: =mvalloc!G19 -> 0
B11: Recreational Vehicle Tax | E11: =mvalloc!I19 -> 0
B12: 16/20M Vehicle Tax | E12: =mvalloc!J19 -> 0
B17: Interest on Idle Funds
B18: Miscellaneous
B19: Does miscellaneous exceed 10% of Total Receipts | C19: =IF(C20*0.1<C18,"Exceed 10% Rule","") ->  | D19: =IF(D20*0.1<D18,"Exceed 10% Rule","") ->  | E19: =IF(E20*0.1+E40<E18,"Exceed 10% Rule","") -> 
B20: Total Receipts | C20: =SUM(C8:C18) -> 0 | D20: =SUM(D8:D18) -> 0 | E20: =SUM(E8:E18) -> 0
B21: Resources Available: | C21: =C20+C6 -> 0 | D21: =D20+D6 -> 0 | E21: =E20+E6 -> 0
B22: Expenditures:
G24: =CONCATENATE("Desired Carryover Into ",E1+1,"") -> Desired Carryover Into 2014
G26: Desired Carryover Amount: | J26: 0
G27: Estimated Mill Rate Impact: | J27: =IF(J26=0,"",ROUND((J26+E40-G39)/inputOth!E7*1000,3)-G44) -> 
G28: =CONCATENATE("",E1," Tot Exp/Non-Appr Must Be:") -> 2013 Tot Exp/Non-Appr Must Be: | J28: =IF(J26>0,IF(E37<E21,IF(J26=G39,E37,((J26-G39)*(1-D39))+E21),E37+(J26-G39)),0) -> 0
G29: Expenditures Must Be Changed by: | J29: =IF(J26>0,J28-E37,0) -> 0
B30: Neighborhood Revitalization Rebate | E30: =nhood!E14 -> 
B31: Miscellaneous | G31: =CONCATENATE("Projected Carryover Into ",E1+1,"") -> Projected Carryover Into 2014
B32: Does misc. exceed 10% of Total Expenditures | C32: =IF(C33*0.1<C31,"Exceed 10% Rule","") ->  | D32: =IF(D33*0.1<D31,"Exceed 10% Rule","") ->  | E32: =IF(E33*0.1<E31,"Exceed 10% Rule","") -> 
B33: Total Expenditures | C33: =SUM(C23:C31) -> 0 | D33: =SUM(D23:D31) -> 0 | E33: =SUM(E23:E31) -> 0 | G33: =D34 -> 0 | H33: =CONCATENATE("",E1-1," Ending Cash Balance (est.)") -> 2012 Ending Cash Balance (est.)
B34: Unencumbered Cash Balance Dec 31 | C34: =C21-C33 -> 0 | D34: =D21-D33 -> 0 | E34: x | G34: =E20 -> 0 | H34: =CONCATENATE("",E1," Non-AV Receipts (est.)") -> 2013 Non-AV Receipts (est.)
B35: =CONCATENATE("",E1-2,"/",E1-1," Budget Authority Amount:") -> 2011/2012 Budget Authority Amount: | C35: =inputOth!B54 -> 0 | D35: =inputPrYr!D24 -> 0 | E35: x | G35: =IF(E39>0,E38,E40) -> 0 | H35: =CONCATENATE("",E1," Ad Valorem Tax (est.)") -> 2013 Ad Valorem Tax (est.) | K35: =IF(G35=E40,"","Note: Does not include Delinquent Taxes") -> 
C36: Non-Appropriated Balance | F36: =IF(E33/0.95-E33<E36,"Exceeds 5%","") ->  | G36: =SUM(G33:G35) -> 0 | H36: =CONCATENATE("Total ",E1," Resources Available") -> Total 2013 Resources Available
B37: =CONCATENATE(C92," ",D92) ->  | C37: Total Expenditure/Non-Appr Balance | E37: =E33+E36 -> 0
B38: =CONCATENATE(C93," ",D93) ->  | D38: Tax Required | E38: =IF(E37-E21>0,E37-E21,0) -> 0 | G38: =ROUND(C33*0.05+C33,) -> 0 | H38: =CONCATENATE("Less ",E1-2," Expenditures + 5%") -> Less 2011 Expenditures + 5%
C39: Delinquent Comp Rate: | D39: =inputOth!$E$40 -> 0 | E39: =ROUND(IF(D39>0,(E38*D39),0),0) -> 0 | G39: =G36-G38 -> 0 | H39: =CONCATENATE("Projected ",E1+1," carryover (est.)") -> Projected 2014 carryover (est.)
C40: =CONCATENATE("Amount of ",$E$1-1," Ad Valorem Tax") -> Amount of 2012 Ad Valorem Tax | E40: =E38+E39 -> 0
G41: Mill Rate Comparison
B43: Adopted Budget | G43: =summ!#REF! ->  | H43: =CONCATENATE("",E1," Fund Mill Rate") -> 2013 Fund Mill Rate
C44: Prior Year | D44: Current Year | E44: Proposed Budget | G44: =summ!#REF! ->  | H44: =CONCATENATE("",E1-1," Fund Mill Rate") -> 2012 Fund Mill Rate
B45: =inputPrYr!B25 -> 0 | C45: =C5 -> Actual for 2011 | D45: =D5 -> Estimate for 2012 | E45: =E5 -> Year for 2013 | G45: =summ!I22 -> 1.174 | H45: =CONCATENATE("Total ",E1," Mill Rate") -> Total 2013 Mill Rate
B46: Unencumbered Cash Balance January 1 | D46: =C74 -> 0 | E46: =D74 -> 0 | G46: =summ!F22 -> 0.923 | H46: =CONCATENATE("Total ",E1-1," Mill Rate") -> Total 2012 Mill Rate
B47: Receipts:
B48: Ad Valorem Tax | D48: =IF(inputPrYr!H15>0,inputPrYr!G25,inputPrYr!E25) -> 0 | E48: x
B49: Delinquent Tax
B50: Motor Vehicle Tax | E50: =mvalloc!G20 -> 0
B51: Recreational Vehicle Tax | E51: =mvalloc!I20 -> 0
B52: 16/20M Vehicle Tax | E52: =mvalloc!J20 -> 0
B57: Interest on Idle Funds
B58: Miscellaneous
B59: Does miscellaneous exceed 10% of Total Receipts | C59: =IF(C60*0.1<C58,"Exceed 10% Rule","") ->  | D59: =IF(D60*0.1<D58,"Exceed 10% Rule","") ->  | E59: =IF(E60*0.1+E80<E58,"Exceed 10% Rule","") -> 
B60: Total Receipts | C60: =SUM(C48:C58) -> 0 | D60: =SUM(D48:D58) -> 0 | E60: =SUM(E48:E58) -> 0
B61: Resources Available: | C61: =C60+C46 -> 0 | D61: =D60+D46 -> 0 | E61: =E60+E46 -> 0
B62: Expenditures:
G64: =CONCATENATE("Desired Carryover Into ",E1+1,"") -> Desired Carryover Into 2014
G66: Desired Carryover Amount: | J66: 0
G67: Estimated Mill Rate Impact: | J67: =IF(J66=0,"",ROUND((J66+E80-G79)/inputOth!E7*1000,3)-G84) -> 
G68: =CONCATENATE("",E1," Tot Exp/Non-Appr Must Be:") -> 2013 Tot Exp/Non-Appr Must Be: | J68: =IF(J66>0,IF(E77<E61,IF(J66=G79,E77,((J66-G79)*(1-D79))+E61),E77+(J66-G79)),0) -> 0
G69: Expenditures Must Be Changed by: | J69: =IF(J66>0,J68-E77,0) -> 0
B70: Neighborhood Revitalization Rebate | E70: =nhood!E15 -> 
B71: Miscellaneous | G71: =CONCATENATE("Projected Carryover Into ",E1+1,"") -> Projected Carryover Into 2014
B72: Does misc. exceed 10% of Total Expenditures | C72: =IF(C73*0.1<C71,"Exceed 10% Rule","") ->  | D72: =IF(D73*0.1<D71,"Exceed 10% Rule","") ->  | E72: =IF(E73*0.1<E71,"Exceed 10% Rule","") -> 
B73: Total Expenditures | C73: =SUM(C63:C71) -> 0 | D73: =SUM(D63:D71) -> 0 | E73: =SUM(E63:E71) -> 0 | G73: =D74 -> 0 | H73: =CONCATENATE("",E1-1," Ending Cash Balance (est.)") -> 2012 Ending Cash Balance (est.)
B74: Unencumbered Cash Balance Dec 31 | C74: =C61-C73 -> 0 | D74: =D61-D73 -> 0 | E74: x | G74: =E60 -> 0 | H74: =CONCATENATE("",E1," Non-AV Receipts (est.)") -> 2013 Non-AV Receipts (est.)
B75: =CONCATENATE("",E1-2,"/",E1-1," Budget Authority Amount:") -> 2011/2012 Budget Authority Amount: | C75: =inputOth!B55 -> 0 | D75: =inputPrYr!D25 -> 0 | E75: x | G75: =IF(E79>0,E78,E80) -> 0 | H75: =CONCATENATE("",E1," Ad Valorem Tax (est.)") -> 2013 Ad Valorem Tax (est.) | K75: =IF(G75=E80,"","Note: Does not include Delinquent Taxes") -> 
C76: Non-Appropriated Balance | F76: =IF(E73/0.95-E73<E76,"Exceeds 5%","") ->  | G76: =SUM(G73:G75) -> 0 | H76: =CONCATENATE("Total ",E1," Resources Available") -> Total 2013 Resources Available
C77: Total Expenditure/Non-Appr Balance | E77: =E73+E76 -> 0
D78: Tax Required | E78: =IF(E77-E61>0,E77-E61,0) -> 0 | G78: =ROUND(C73*0.05+C73,0) -> 0 | H78: =CONCATENATE("Less ",E1-2," Expenditures + 5%") -> Less 2011 Expenditures + 5%
C79: Delinquent Comp Rate: | D79: =inputOth!$E$40 -> 0 | E79: =ROUND(IF(D79>0,(E78*D79),0),0) -> 0 | G79: =G76-G78 -> 0 | H79: =CONCATENATE("Projected ",E1+1," carryover (est.)") -> Projected 2014 carryover (est.)
C80: =CONCATENATE("Amount of ",$E$1-1," Ad Valorem Tax") -> Amount of 2012 Ad Valorem Tax | E80: =E78+E79 -> 0
B81: Page No. | G81: Mill Rate Comparison
G83: =summ!#REF! ->  | H83: =CONCATENATE("",E1," Fund Mill Rate") -> 2013 Fund Mill Rate
G84: =summ!#REF! ->  | H84: =CONCATENATE("",E1-1," Fund Mill Rate") -> 2012 Fund Mill Rate
G85: =summ!I22 -> 1.174 | H85: =CONCATENATE("Total ",E1," Mill Rate") -> Total 2013 Mill Rate
G86: =summ!F22 -> 0.923 | H86: =CONCATENATE("Total ",E1-1," Mill Rate") -> Total 2012 Mill Rate
C92: =IF(C33>C35,"See Tab A","") ->  | D92: =IF(D33>D35,"See Tab C","") -> 
C93: =IF(C34<0,"See Tab B","") ->  | D93: =IF(D34<0,"See Tab D","") -> 
C94: =IF(C73>C75,"See Tab A","") ->  | D94: =IF(D73>D75,"See Tab C","") -> 
C95: =IF(C74<0,"See Tab B","") ->  | D95: =IF(D74<0,"See Tab D","") -> 

Sheet nolevypage12
B1: =inputPrYr!D2 -> Garden City Township | E1: =inputPrYr!D5 -> 2013
B3: FUND PAGE FOR FUNDS WITH NO TAX LEVY
B4: Adopted Budget | C4: Prior Year | D4: Current Year | E4: Proposed Budget
B5: =inputPrYr!B29 -> 0 | C5: =gen!C5 -> Actual for 2011 | D5: =gen!D5 -> Estimate for 2012 | E5: =gen!E5 -> Year for 2013
B6: Unencumbered Cash Balance Jan 1 | D6: =C29 -> 0 | E6: =D29 -> 0
B7: Receipts:
B12: Interest on Idle Funds
B13: Miscellaneous
B14: Does miscellaneous exceed 10% of Total Receipts | C14: =IF(C15*0.1<C13,"Exceed 10% Rule","") ->  | D14: =IF(D15*0.1<D13,"Exceed 10% Rule","") ->  | E14: =IF(E15*0.1<E13,"Exceed 10% Rule","") -> 
B15: Total Receipts | C15: =SUM(C8:C13) -> 0 | D15: =SUM(D8:D13) -> 0 | E15: =SUM(E8:E13) -> 0
B16: Resources Available: | C16: =C6+C15 -> 0 | D16: =D6+D15 -> 0 | E16: =E6+E15 -> 0
B17: Expenditures:
B26: Miscellaneous
B27: Does misc. exceed 10% of Total Expenditures | C27: =IF(C28*0.1<C26,"Exceed 10% Rule","") ->  | D27: =IF(D28*0.1<D26,"Exceed 10% Rule","") ->  | E27: =IF(E28*0.1<E26,"Exceed 10% Rule","") -> 
B28: Total Expenditures | C28: =SUM(C18:C26) -> 0 | D28: =SUM(D18:D26) -> 0 | E28: =SUM(E18:E26) -> 0
B29: Unencumbered Cash Balance Dec 31 | C29: =C16-C28 -> 0 | D29: =D16-D28 -> 0 | E29: =E16-E28 -> 0
B30: =CONCATENATE("",E1-2,"/",E1-1," Budget Authority Amount:") -> 2011/2012 Budget Authority Amount: | C30: =inputOth!B56 -> 0 | D30: =inputPrYr!D29 -> 0 | E30: =IF(E29<0,"See Tab E","") -> 
C31: =IF(C28>C30,"See Tab A","") ->  | D31: =IF(D28>D30,"See Tab C","") -> 
C32: =IF(C29<0,"See Tab B","") ->  | D32: =IF(D29<0,"See Tab D","") -> 
B34: Adopted Budget
C35: Prior Year | D35: Current Year | E35: Proposed Budget
B36: =inputPrYr!B30 -> 0 | C36: =C5 -> Actual for 2011 | D36: =D5 -> Estimate for 2012 | E36: =E5 -> Year for 2013
B37: Unencumbered Cash Balance Jan 1 | D37: =C60 -> 0 | E37: =D60 -> 0
B38: Receipts:
B43: Interest on Idle Funds
B44: Miscellaneous
B45: Does miscellaneous exceed 10% of Total Receipts | C45: =IF(C46*0.1<C44,"Exceed 10% Rule","") ->  | D45: =IF(D46*0.1<D44,"Exceed 10% Rule","") ->  | E45: =IF(E46*0.1<E44,"Exceed 10% Rule","") -> 
B46: Total Receipts | C46: =SUM(C39:C44) -> 0 | D46: =SUM(D39:D44) -> 0 | E46: =SUM(E39:E44) -> 0
B47: Resources Available: | C47: =C37+C46 -> 0 | D47: =D37+D46 -> 0 | E47: =E37+E46 -> 0
B48: Expenditures:
B57: Miscellaneous
B58: Does misc. exceed 10% of Total Expenditures | C58: =IF(C59*0.1<C57,"Exceed 10% Rule","") ->  | D58: =IF(D59*0.1<D57,"Exceed 10% Rule","") ->  | E58: =IF(E59*0.1<E57,"Exceed 10% Rule","") -> 
B59: Total Expenditures | C59: =SUM(C49:C57) -> 0 | D59: =SUM(D49:D57) -> 0 | E59: =SUM(E49:E57) -> 0
B60: Unencumbered Cash Balance Dec 31 | C60: =C47-C59 -> 0 | D60: =D47-D59 -> 0 | E60: =E47-E59 -> 0
B61: =CONCATENATE("",E1-2,"/",E1-1," Budget Authority Amount:") -> 2011/2012 Budget Authority Amount: | C61: =inputOth!B57 -> 0 | D61: =inputPrYr!D30 -> 0 | E61: =IF(E60<0,"See Tab E","") -> 
C62: =IF(C59>C61,"See Tab A","") ->  | D62: =IF(D59>D61,"See Tab C","") -> 
C63: =IF(C60<0,"See Tab B","") ->  | D63: =IF(D60<0,"See Tab D","") -> 
B65: Page No.

Sheet nonbud
A1: =inputPrYr!$D$2 -> Garden City Township | F1: NON-BUDGETED FUNDS | K1: =inputPrYr!$D$5 -> 2013
F2: =CONCATENATE("(Only the actual budget year for ",K1-2," is to be shown)") -> (Only the actual budget year for 2011 is to be shown)
A3: Non-Budgeted Funds
A4: (1) Fund Name: | C4: (2) Fund Name: | E4: (3) Fund Name: | G4: (4) Fund Name: | I4: (5) Fund Name:
A5: =inputPrYr!B34 -> 0 | C5: =inputPrYr!B35 -> 0 | E5: =inputPrYr!B36 -> 0 | G5: =inputPrYr!B37 -> 0 | I5: =inputPrYr!B38 -> 0
A6: Unencumbered | C6: Unencumbered | E6: Unencumbered | G6: Unencumbered | I6: Unencumbered | K6: Total
A7: Cash Balance Jan 1 | C7: Cash Balance Jan 1 | E7: Cash Balance Jan 1 | G7: Cash Balance Jan 1 | I7: Cash Balance Jan 1 | K7: =SUM(B7+D7+F7+H7+J7) -> 0
A8: Receipts: | C8: Receipts: | E8: Receipts: | G8: Receipts: | I8: Receipts:
A17: Total Receipts | B17: =SUM(B9:B16) -> 0 | C17: Total Receipts | D17: =SUM(D9:D16) -> 0 | E17: Total Receipts | F17: =SUM(F9:F16) -> 0 | G17: Total Receipts | H17: =SUM(H9:H16) -> 0 | I17: Total Receipts | J17: =SUM(J9:J16) -> 0 | K17: =SUM(B17+D17+F17+H17+J17) -> 0
A18: Resources Available: | B18: =SUM(B7+B17) -> 0 | C18: Resources Available: | D18: =SUM(D7+D17) -> 0 | E18: Resources Available: | F18: =SUM(F7+F17) -> 0 | G18: Resources Available: | H18: =SUM(H7+H17) -> 0 | I18: Resources Available: | J18: =SUM(J7+J17) -> 0 | K18: =SUM(B18+D18+F18+H18+J18) -> 0
A19: Expenditures: | C19: Expenditures: | E19: Expenditures: | G19: Expenditures: | I19: Expenditures:
A28: Total Expenditures | B28: =SUM(B20:B27) -> 0 | C28: Total Expenditures | D28: =SUM(D20:D27) -> 0 | E28: Total Expenditures | F28: =SUM(F20:F27) -> 0 | G28: Total Expenditures | H28: =SUM(H20:H27) -> 0 | I28: Total Expenditures | J28: =SUM(J20:J27) -> 0 | K28: =SUM(B28+D28+F28+H28+J28) -> 0
A29: Cash Balance Dec 31 | B29: =SUM(B18-B28) -> 0 | C29: Cash Balance Dec 31 | D29: =SUM(D18-D28) -> 0 | E29: Cash Balance Dec 31 | F29: =SUM(F18-F28) -> 0 | G29: Cash Balance Dec 31 | H29: =SUM(H18-H28) -> 0 | I29: Cash Balance Dec 31 | J29: =SUM(J18-J28) -> 0 | K29: =SUM(B29+D29+F29+H29+J29) -> 0 | L29: **
B30: =IF(B29<0,"See Tab B","") ->  | D30: =IF(D29<0,"See Tab B","") ->  | F30: =IF(F29<0,"See Tab B","") ->  | H30: =IF(H29<0,"See Tab B","") ->  | J30: =IF(J29<0,"See Tab B","") ->  | K30: =SUM(K7+K17-K28) -> 0 | L30: **
G31: ** Note: These two block figures should agree.
E33: Page No.

Sheet NonBudFunds
A1: Non-Budgeted Funds - Townships
A2: K.S.A. 12-110d. Special ambulance or emergency medical service equipment fund. The governing body may create a special reserve fund for replacement of ambulance or emergency medical service equipment.
A4: K.S.A. 12-631p. Sewerage system reserve fund. The governing body may create a sewer system reserve fund for the future maintenance and operation of its system and for the construction of improvements and expansions to such system.
A6: K.S.A. 12-1663. Federal grants (e.g. FEMA). Federal aid intended to be used alone or with funds of the public agency may be expended without regard to budget limitations and over, above or outside the budget.
A8: K.S.A. 12-16,102. Employee benefits trust funds. For the purpose of holding and investing the assets of other postemployment benefits funds any taxing subdivision may establish one or more trust funds.
A10: K.S.A. 12-16,111. State loans and grants. State loans or grants may be expended without regard to budget limitations and over, above or outside the budget.
A12: K.S.A. 12-17,118. Neighborhood revitalization fund. After adoption of a neighborhood revitalization plan the governing body shall create a neighborhood revitalization fund.
A14: K.S.A. 68-141g. Special road, bridge or street building machinery, equipment and bridge building fund. Authorizes a special road, bridge or street building machinery, equipment and bridge building fund and the annual transfer of not to exceed 25% of the budgeted amount of the corresponding operating fund.
A16: K.S.A. 75-6110. Special liability expense fund. Authorizes the creation of special liability expense fund for payment of costs and claims against the municipality or its employees.
A18: K.S.A. 79-1808. Special assessment fund. Proceeds of tax levy to raise funds to pay special assessments against municipality-owned property and, for cities and counties, to pay debt service, shall be placed in a special assessment fund.
A20: K.S.A. 79-2925. Budgets exempt from the state budget law. The state budget law does not apply to townships in counties having the county road unit system which have an annual expenditure of less than $200, and to any money received as a gift or bequest.
A22: K.S.A. 80-122. Township equipment reserve fund. Authorizes a township to create a township equipment reserve fund to finance the acquisition of equipment and to budget and transfer each year to such fund up to 25% of the general fund.
A25: K.S.A. 80-1558. Township special fire protection reserve fund. Authorizes a township to create a township special fire protection reserve fund to finance the acquisition of fire-fighting equipment, land, and buildings, and to transfer each year to such fund up to 25% of the money credited to the fire fund.

Sheet summ
B1: Published in the Garden City Telegram July 14, 2012 | I1: =inputPrYr!D5 -> 2013
B2: NOTICE OF BUDGET HEARING
B3: The governing body of
B4: =inputPrYr!D2 -> Garden City Township
B5: =inputPrYr!D3 -> Finney County
B6: =CONCATENATE("will meet on ",inputBudSum!B8," at ",inputBudSum!B10," at ",inputBudSum!B12," for the purpose of hearing and") -> will meet on July 25, 2012 at 10:30 a.m. at 2005 E. 6 Mile Road for the purpose of hearing and
B7: answering objections of taxpayers relating to the proposed use of all funds and the amount of ad valorem tax.
B8: =CONCATENATE("Detailed budget information is available at ",inputBudSum!B15," and will be available at this hearing.") -> Detailed budget information is available at Finney County Clerk's office and will be available at this hearing.
B9: BUDGET SUMMARY
B10: =CONCATENATE("Proposed Budget ",I1," Expenditures and Amount of ",I1-1," Ad Valorem Tax establish the maximum limits") -> Proposed Budget 2013 Expenditures and Amount of 2012 Ad Valorem Tax establish the maximum limits
B11: =CONCATENATE("of the ",I1," budget. Estimated Tax Rate is subject to change depending on the final assessed valuation.") -> of the 2013 budget. Estimated Tax Rate is subject to change depending on the final assessed valuation.
C12: =CONCATENATE("Prior Year Actual ",I1-2,"") -> Prior Year Actual 2011 | E12: =CONCATENATE("Current Year Estimate ",I1-1,"") -> Current Year Estimate 2012 | G12: =CONCATENATE("Proposed Budget ",I1,"") -> Proposed Budget 2013
D13: Actual | F13: Actual | H13: =CONCATENATE("Amount of ",I1-1," Ad Valorem Tax") -> Amount of 2012 Ad Valorem Tax | I13: Est.
D14: Tax | F14: Tax | G14: Budget Authority | I14: Tax
B15: Fund | C15: Expenditures | D15: Rate* | E15: Expenditures | F15: Rate* | G15: for Expenditures | I15: Rate*
B16: =inputPrYr!B16 -> General | C16: =IF(gen!$C$50<>0,gen!$C$50," ") -> 350 | D16: =IF(inputPrYr!D42>0,inputPrYr!D42," ") ->  | E16: =IF(gen!$D$50<>0,gen!$D$50," ") -> 10500 | F16: =IF(inputOth!D17>0,inputOth!D17," ") ->  | G16: =IF(gen!$E$50<>0,gen!$E$50," ") -> 38539 | H16: =IF(gen!$E$57<>0,gen!$E$57," ") ->  | I16: =IF(gen!E57>0,ROUND(H16/$G$27*1000,3)," ") -> 
B17: Debt Service | C17: =IF('DebtSvs-Library'!C33<>0,'DebtSvs-Library'!C33," ") ->  | D17: =IF(inputPrYr!D43>0,inputPrYr!D43," ") ->  | E17: =IF('DebtSvs-Library'!D33<>0,'DebtSvs-Library'!D33," ") ->  | F17: =IF(inputOth!D18>0,inputOth!D18," ") ->  | G17: =IF('DebtSvs-Library'!E33<>0,'DebtSvs-Library'!E33," ") ->  | H17: =IF('DebtSvs-Library'!E40<>0,'DebtSvs-Library'!E40," ") ->  | I17: =IF('DebtSvs-Library'!E40>0,ROUND(H17/$G$27*1000,3)," ") -> 
B18: =IF(inputPrYr!$B18>" ",inputPrYr!$B18," ") -> Library | C18: =IF('DebtSvs-Library'!C73<>0,'DebtSvs-Library'!C73," ") ->  | D18: =IF(inputPrYr!D44>0,inputPrYr!D44," ") ->  | E18: =IF('DebtSvs-Library'!D73<>0,'DebtSvs-Library'!D73," ") ->  | F18: =IF(inputOth!D19>0,inputOth!D19," ") ->  | G18: =IF('DebtSvs-Library'!E73<>0,'DebtSvs-Library'!E73," ") ->  | H18: =IF('DebtSvs-Library'!E80<>0,'DebtSvs-Library'!E80," ") ->  | I18: =IF('DebtSvs-Library'!E80>0,ROUND(H18/$G$27*1000,3)," ") -> 
B19: =IF(inputPrYr!$B19>" ",inputPrYr!$B19," ") -> Road | C19: =IF(road!$C$43<>0,road!$C$43," ") ->  | D19: =IF(inputPrYr!D45>0,inputPrYr!D45," ") ->  | E19: =IF(road!$D$43<>0,road!$D$43," ") ->  | F19: =IF(inputOth!D20>0,inputOth!D20," ") ->  | G19: =IF(road!$E$43<>0,road!$E$43," ") ->  | H19: =IF(road!$E$50<>0,road!$E$50," ") ->  | I19: =IF(road!E50>0,ROUND(H19/$G$27*1000,3)," ") ->  | K19: =CONCATENATE("Estimated Value Of One Mill For ",I1,"") -> Estimated Value Of One Mill For 2013
B20: =IF(inputPrYr!$B20>" ",inputPrYr!$B20," ") -> Fire | C20: =IF(levypage9!$C$33<>0,levypage9!$C$33," ") -> 102381 | D20: =IF(inputPrYr!D46>0,inputPrYr!D46," ") -> 0.181 | E20: =IF(levypage9!$D$33<>0,levypage9!$D$33," ") -> 106000 | F20: =IF(inputOth!D21>0,inputOth!D21," ") -> 0.923 | G20: =IF(levypage9!$E$33<>0,levypage9!$E$33," ") -> 190000 | H20: =IF(levypage9!$E$40<>0,levypage9!$E$40," ") -> 98116 | I20: =IF(levypage9!E40>0,ROUND(H20/$G$27*1000,3)," ") -> 1.174
B21: Special Machinery | C21: =IF(road!C64<>0,road!C64," ") -> 
B22: Totals | C22: =SUM(C16:C21) -> 102731 | D22: 0.181 | E22: 116500 | F22: 0.923 | G22: 228539 | H22: 98116 | I22: 1.174 | K22: =CONCATENATE("Impact On Keeping The Same Mill Rate As For ",I1-1,"") -> Impact On Keeping The Same Mill Rate As For 2012
B23: Less: Transfers | C23: =transfer!C29 -> 0 | E23: =transfer!D29 -> 0 | G23: =transfer!E29 -> 0
B24: Net Expenditure | C24: =C22-C23 -> 102731 | E24: =E22-E23 -> 116500 | G24: =G22-G23 -> 228539 | K24: =CONCATENATE("",I1," Ad Valorem Tax Revenue:") -> 2013 Ad Valorem Tax Revenue: | N24: =H22 -> 98116
B25: Total Tax Levied | C25: =inputPrYr!E54 -> 87521 | E25: =inputPrYr!E26 -> 77801 | G25: x | K25: =CONCATENATE("",I1-1," Ad Valorem Tax Revenue:") -> 2012 Ad Valorem Tax Revenue: | N25: =ROUND(G27*#REF!/1000,0) -> 
B26: Assessed Valuation: | K26: Change in Ad Valorem Tax Revenue: | N26: =N24-N25 -> 
B27: Township | C27: =inputPrYr!E55 -> 74128974 | E27: =inputOth!E29 -> 84374869 | G27: =inputOth!E7 -> 83550962
B28: Outstanding Indebtedness, | K28: What Mill Rate Would Be Desired?
B29: Jan 1 | C29: =I1-3 -> 2010 | E29: =I1-2 -> 2011 | G29: =I1-1 -> 2012
B30: G.O. Bonds | C30: =inputPrYr!D59 -> 0 | E30: =inputPrYr!E59 -> 0 | G30: ='debt-lease'!F11 -> 0 | K30: =CONCATENATE("Current ",I1," Estimated Mill Rate:") -> Current 2013 Estimated Mill Rate: | N30: =I22 -> 1.174
B31: Other | C31: =inputPrYr!D60 -> 0 | E31: =inputPrYr!E60 -> 0 | G31: ='debt-lease'!F15 -> 0 | K31: =CONCATENATE("Desired ",I1," Mill Rate:") -> Desired 2013 Mill Rate: | N31: 0
B32: Lease Purchase Principal | C32: =inputPrYr!D61 -> 0 | E32: =inputPrYr!E61 -> 0 | G32: ='debt-lease'!G36 -> 0 | K32: =CONCATENATE("",I1," Ad Valorem Tax:") -> 2013 Ad Valorem Tax: | N32: =ROUND(G27*N31/1000,0) -> 0
B33: Total | C33: =SUM(C30:C32) -> 0 | E33: =SUM(E30:E32) -> 0 | G33: =SUM(G30:G32) -> 0 | K33: =CONCATENATE("",I1," Tax Levy Fund Exp. Changed By:") -> 2013 Tax Levy Fund Exp. Changed By: | N33: =IF(N31=0,0,(N32-H22)) -> 0
B34: *Tax rates are expressed in mills.
B35: =inputBudSum!B4 -> Patricia Stockham
B36: =inputBudSum!B6 -> Garden City Township Treasurer
C38: Page No. | D38: 8

Sheet nhood
A1: =inputPrYr!D2 -> Garden City Township | F1: =inputPrYr!D5 -> 2013
B3: =CONCATENATE("",F1," Neighborhood Revitalization Rebate") -> 2013 Neighborhood Revitalization Rebate
B5: =CONCATENATE("Budgeted Funds for ",F1,"") -> Budgeted Funds for 2013 | C5: =CONCATENATE("",F1-1," Ad Valorem before Rebate**") -> 2012 Ad Valorem before Rebate** | D5: =CONCATENATE("",F1-1," Mil Rate before Rebate") -> 2012 Mil Rate before Rebate | E5: =CONCATENATE("Estimate ",F1," NR Rebate") -> Estimate 2013 NR Rebate
B6: =inputPrYr!B16 -> General | D6: =IF(C6>0,C6/$D$21,"") ->  | E6: =IF(C6>0,ROUND(D6*$D$25,0),"") -> 
B7: =inputPrYr!B17 -> Debt Service
B8: =inputPrYr!B18 -> Library | D8: =IF(C8>0,C8/$D$21,"") ->  | E8: =IF(C8>0,ROUND(D8*$D$25,0),"") -> 
B9: =inputPrYr!B19 -> Road
B10: =inputPrYr!B20 -> Fire
B11: =inputPrYr!B21 -> 0
B12: =inputPrYr!B22 -> 0
B13: =inputPrYr!B23 -> 0
B14: =inputPrYr!B24 -> 0
B15: =inputPrYr!B25 -> 0
B16: TOTAL | C16: =SUM(C6:C15) -> 0 | D16: =SUM(D6:D15) -> 0 | E16: =SUM(E6:E15) -> 0
A19: =CONCATENATE("",F1-1," July 1 Valuation:") -> 2012 July 1 Valuation: | D19: =inputOth!E7 -> 83550962
B21: Valuation Factor: | D21: =IF(D19>0,(D19*0.001),"") -> 83550.962
A23: Neighborhood Revitalization Subj to Rebate: | D23: =inputOth!E13 -> 0
B25: Neighborhood Revitalization factor: | D25: =IF(D23>0,(D23*0.001),"") -> 
A29: =CONCATENATE("**This information comes from the ",F1," Budget Summary page. See instructions tab #12 for completing") -> **This information comes from the 2013 Budget Summary page. See instructions tab #12 for completing
A30: the Neighborhood Revitalization Rebate table.
B38: Page No.

Sheet Resolution
A1: Published in the Garden City Telegram July 14, 2012
A2: TOWNSHIP RESOLUTION
A3: RESOLUTION NO.1-2012
A4: =CONCATENATE("A resolution expressing the property taxation policy of the Board of ",(inputPrYr!D2)," ") -> A resolution expressing the property taxation policy of the Board of Garden City Township | I4: =CONCATENATE(I5) -> 
A5: =CONCATENATE(" with respect to financing the ",inputPrYr!D5," annual budget for ",(inputPrYr!D2)," , ",(inputPrYr!D3)," , Kansas.") -> with respect to financing the 2013 annual budget for Garden City Township , Finney County , Kansas.
A7: Whereas, K.S.A. 79-2925b provides that a resolution be adopted if property taxes levied
A8: =CONCATENATE("to finance the ",inputPrYr!D5," ",(inputPrYr!D2)," budget exceed the amount levied to finance the ",inputPrYr!D5-1,"") -> to finance the 2013 Garden City Township budget exceed the amount levied to finance the 2012
A9: =CONCATENATE((inputPrYr!D2)," Township budget, except with regard to revenue produced and attributable to the taxation of 1) new improvements to real property; 2) increased personal property valuation, other than increased") -> Garden City Township Township budget, except with regard to revenue produced and attributable to the taxation of 1) new improvements to real property; 2) increased personal property valuation, other than increased
A11: valuation of oil and gas leaseholds and mobile homes; and 3) property which has changed in use during the past year, or with regard to revenue produced for the purpose of repaying the principal of and interest upon bonded indebtedness, temporary notes, or no-fund warrants; and
A14: Whereas, budgeting, taxing and service level decisions for all township services are the responsibility of the township board; and
A16: =CONCATENATE("Whereas, ",(inputPrYr!D2)," provides essential services to protect the safety and well being of the citizens of the township; and") -> Whereas, Garden City Township provides essential services to protect the safety and well being of the citizens of the township; and
A18: Whereas, the cost of provision of these services continues to increase.
A19: =CONCATENATE("NOW, THEREFORE, BE IT RESOLVED by the Board of ",(inputPrYr!D2)," of ",(inputPrYr!D3),", Kansas that is our desire to notify the public of increased property taxes to finance the ",inputPrYr!D5," ",(inputPrYr!D2)," budget as defined above.") -> NOW, THEREFORE, BE IT RESOLVED by the Board of Garden City Township of Finney County, Kansas that is our desire to notify the public of increased property taxes to finance the 2013 Garden City Township budget as defined above.
A22: =CONCATENATE("Adopted this 25th day of July, ",inputPrYr!D5-1," by the ",(inputPrYr!D2)," Board, ",(inputPrYr!D3),", Kansas.") -> Adopted this 25th day of July, 2012 by the Garden City Township Board, Finney County, Kansas.
D24: =CONCATENATE((inputPrYr!D2)," Board") -> Garden City Township Board
D25: ___________________________________
D26: Treasurer
D28: ___________________________________
D29: Trustee
D31: ____________________________
D32: Clerk
C36: Page No. | D36: 9

Sheet Tab A
A3: Possible Budget Law Violation
A5: Welcome. You have been directed to this tab because your
A6: =CONCATENATE(inputPrYr!D5-2," 'total expenditures' exceed your ",inputPrYr!D5-2," 'budget authority.'") -> 2011 'total expenditures' exceed your 2011 'budget authority.'
A8: In short, you are looking at a potential budget law violation.
A9: However, the good news is that you may have options available
A10: that will allow you to avoid a budget law violation.
A13: Can the potential violation be corrected at this time?
A15: If the municipality financial records have not been closed
A16: =CONCATENATE("(i.e. an audit has not been completed, or the ",inputPrYr!D5," adopted") -> (i.e. an audit has not been completed, or the 2013 adopted
A17: budget has not been submitted to the county clerk) then the
A18: budget law violation can be fixed before submission of the
A19: budget to the county clerk.
A21: What should I do?
A23: First, review the input page information (inputPrYr tab)
A24: to ensure that the correct amount was entered for this
A25: =CONCATENATE("particular fund. If your ",inputPrYr!D5-2," budget was amended, did you") -> particular fund. If your 2011 budget was amended, did you
A26: use the amended, higher budget amount?
A28: =CONCATENATE("Next, look to see if any of your ",inputPrYr!D5-2," expenditures can be") -> Next, look to see if any of your 2011 expenditures can be
A29: reduced or eliminated. For example, are you showing any
A30: transfers from this fund to another? If so, consider whether
A31: you can reduce or eliminate one or more transfers.
A33: =CONCATENATE("Additionally, do your ",inputPrYr!D5-2," receipts contain a reimbursement") -> Additionally, do your 2011 receipts contain a reimbursement
A34: (e.g. FEMA)? If so, instead of showing the reimbursement as a
A35: receipt, show the reimbursement as a negative expenditure.
A37: Another option is to consider whether your fund shares
A38: expenditures with another fund. For example, your road
A39: and noxious weed funds may split salaries between the two funds. If
A40: one of those funds is in trouble, you might be able to allocate
A41: a little more in salaries to the healthy fund in order to
A42: eliminate the violation (be sure, though, that the
A43: healthy fund has sufficient budget authority and cash
A44: available).
A46: The shifting of expenditures between funds, as described in
A47: the preceding paragraph, can be accomplished between any funds
A48: that share expenses.
A50: Finally, if your general fund is healthy - it has enough budget
A51: authority and cash - then it might be used to cover the excess
A52: expenditures. (AGO No. 85-181)
A54: Is amending the budget an option?
A56: Amending the budget is a timing issue. In order to amend the
A57: budget, you must have the complete amending process completed
A58: before the end of the calandar year. If you start at the
A59: beginning of December, then you should have enough time to
A60: amend the budget. But, if started during the middle of
A61: December, then you might not have enough time to complete
A62: the amending process. Remember the complete processing must
A63: be completed on or before the end of December and you must have
A64: at least 10 days between when published in local newspaper and
A65: when the budget hearing is held. So, if your local newspaper only
A66: publishes once a week or bi-weekly, then there might not be
A67: time enough to have the 10 day requirement between publication
A68: and the hearing.
A70: Amending the budget can be done at any time during the budgeted
A71: year. But, amending the budget should take place before the
A72: expenditures exceed the budget authority.
A74: =CONCATENATE("What if the ",inputPrYr!D5-2," financial records have been closed?") -> What if the 2011 financial records have been closed?
A76: Well, if the municipality financial records have been closed
A77: =CONCATENATE("(i.e. an audit for ",inputPrYr!D5-2," has been completed, or the ",inputPrYr!D5) -> (i.e. an audit for 2011 has been completed, or the 2013
A78: adopted budget has been submitted to the county clerk), then
A79: the violation cannot be fixed and must be shown as it occurred.
A81: No punitive action will be taken as a result of the
A82: violation, but you should determine what caused the violation
A83: and take steps to avoid future violations of this nature.
A85: Thank you.

Sheet Tab B
A3: Possible Cash Basis Law Violation
A5: Welcome. You have been directed to this tab because your
A6: =CONCATENATE(inputPrYr!D5-2," expenditures show that you finished the year with a ") -> 2011 expenditures show that you finished the year with a
A7: negative unencumbered cash balance in this fund.
A9: However, the good news is that you may have one or more
A10: options available that will allow you to avoid a cash basis
A11: law violation.
A13: Is this a violation?
A15: Hopefully not. The first thing that you might do is
A16: to review K.S.A. 10-1116 to see if your fund might be one of
A17: those for which a negative cash balance is permitted.
A19: What if K.S.A. 10-1116 applies?
A21: If the fund falls into one of the categories, then a cash
A22: basis law violation has not occurred. Please annotate to the
A23: left of the 'See Tab B' as follows: "10-1116 applies."
A25: What if K.S.A. 10-1116 does not apply?
A27: If the fund does not fall into one of the categories, then
A28: let's explore your options, below, to see if we can help you
A29: avoid a cash basis law violation.
A31: Options
A33: =CONCATENATE("If your financial records for ",inputPrYr!D5-2," are not closed") -> If your financial records for 2011 are not closed
A34: =CONCATENATE("(i.e. an audit has not been completed, or the ",inputPrYr!D5," adopted ") -> (i.e. an audit has not been completed, or the 2013 adopted
A35: budget has not been submitted to the county clerk) then
A36: either your fund receipts will need to be increased
A37: (transfer from another fund) or your expenditures will
A38: need to be decreased (shifting of expenditures to another
A39: fund), or a combination of the two.
A41: Increasing your receipts through one or more transfers
A42: is contingent upon the available cash, budget authority,
A43: and statutory authority for the transfer from the fund or
A44: funds from which one or more transfers might be made.
A46: Another option for you to consider is the shifting of
A47: expenditures from this fund to another fund. Again, the
A48: fund to which expenditures are shifted must have available
A49: cash and budget authority in order to absorb the additional
A50: expenditures.
A52: What if K.S.A. 10-1116 does not apply, and no options
A53: are available to me?
A55: Unfortunately, under this scenario you are pretty much stuck
A56: with a cash basis law violation. However, you can accept
A57: the violation as a learning tool to help you prevent violations
A58: in the future.
A60: Regular reviews of current year budget performance, especially
A61: from the end of the third quarter on, might allow you to determine
A62: in a timely fashion whether an increase in revenue or a decrease
A63: in expenditures is going to be needed before the end of the fiscal
A64: year in order to ensure that a fund finishes the year in good
A65: shape.
A67: In addition to the options discussed above, during the later
A68: part of the year if a utility fund or the general fund has
A69: the cash, but not the budget authority, amending the budget
A70: might be done in order to increase budget authority so that
A71: a transfer can then be made to the struggling fund or, in
A72: the case of the general fund, there can be a shifting of
A73: expenditures from the struggling fund to the general fund.
A75: If, in the future, you choose to amend the budget as described
A76: in the paragraph above, please remember that the amendment
A77: must occur before the end of the fiscal year.
A79: Thank you.

Sheet Tab C
A3: Current Year - Possible Budget Law Violation
A5: Welcome. You have been directed to this tab because your
A6: =CONCATENATE("estimated ",inputPrYr!D5-1," 'total expenditures' exceed your ",inputPrYr!D5-1,"") -> estimated 2012 'total expenditures' exceed your 2012
A7: budget authority.'
A9: In short, you are looking at a potential budget law violation
A10: if you truly end up the year as your current estimates
A11: reflect. The good news is that you have an early
A12: indication of possible issues which can be addressed
A13: sooner rather than later.
A15: Should the potential for a violation be corrected at
A16: this time?
A18: Naturally, our preference would be that you consider
A19: =CONCATENATE("your ",inputPrYr!D5-1," numbers to see what steps might be necessary to") -> your 2012 numbers to see what steps might be necessary to
A20: ensure that your expenditures do not, at year-end, exceed your
A21: budget authority for this fund.
A23: What should I do at this time?
A25: Well, the easiest thing to do at this time is to increase
A26: any underestimated revenue numbers, or decrease
A27: any overestimated expenditure numbers, or a combination
A28: of the two.
A30: What if I check my estimates and find that we're still
A31: on pace for a budget law violation?
A33: =CONCATENATE("Well, let's look to see if any of your ",inputPrYr!D5-1," expenditures can") -> Well, let's look to see if any of your 2012 expenditures can
A34: be reduced or eliminated. For example, are you showing any
A35: transfers from this fund to another? If so, consider whether
A36: you can reduce or eliminate one or more transfers.
A38: =CONCATENATE("Additionally, do your ",inputPrYr!D5-1," receipts contain a reimbursement") -> Additionally, do your 2012 receipts contain a reimbursement
A39: (e.g. FEMA)? If so, instead of showing the reimbursement as a
A40: receipt, show the reimbursement as a negative expenditure.
A42: Another option is to consider whether your fund shares
A43: expenditures with another fund. For example, your road
A44: and noxious weed funds may split salaries between the two funds. If
A45: one of those funds is in trouble you might be able to allocate
A46: a little more in salaries to the healthy fund in order to
A47: eliminate the potential violation (be sure, though, that
A48: the healthy fund has sufficient budget authority and cash
A49: available).
A51: The shifting of expenditures between funds, as described in
A52: the preceding paragraph, can be accomplished between any funds
A53: that share expenses.
A55: A sometimes overlooked option is to use your general
A56: fund to cover the excess expenditures, assuming that the
A57: general fund is not the one that's in trouble and that it
A58: has the budget authority and cash to absorb additional
A59: expenditures.
A61: Finally, If none of the above options can be applied and the
A62: fund has an unencumbered cash balance which will cover
A63: the estimated overage, the budget can be amended before
A64: the end of the fiscal year. Remember, though, that
A65: the amendment process must occur before the end of the
A66: fiscal year.
A68: If the fund does not have enough ending cash so that an
A69: amendment will cover the expected overage, but another fund
A70: does have enough unemcumbered cash (along with budget
A71: authority and statutory authority to transfer to the
A72: fund with the potential budget law violation), go ahead
A73: and make the transfer and then amend the budget.
A75: Thank you.

Sheet Tab D
A3: Current Year - Possible Cash Basis Law Violation
A5: Welcome. You have been directed to this tab because your
A6: =CONCATENATE(inputPrYr!D5," estimated expenditures show that at the end of this year") -> 2013 estimated expenditures show that at the end of this year
A7: you will have a negative unencumbered cash balance in this
A8: fund.
A10: However, the good news is that you may have one or more
A11: options available that will allow you to avoid a cash basis
A12: law violation.
A14: Should this be fixed?
A16: Yes, by all means. You really don't want to end this year
A17: with a negative cash balance in the fund. At a minimum
A18: you will want your ending cash balance to be $0.
A20: Now, it is possible that this is one of those funds which
A21: may, under K.S.A. 10-1116, end the year with a negative cash
A22: balance, but otherwise you will want to make sure that it
A23: does not.
A25: What should I do at this time?
A27: Well, the easiest thing to do at this time is to increase
A28: any underestimated revenue numbers, or decrease
A29: any overestimated expenditure numbers, or a combination
A30: of the two.
A32: What if I check my estimates and find that we're still
A33: on pace for a budget law violation?
A35: Either your fund receipts will need to be increased before
A36: the end of the year (transfer from another fund) or your
A37: expenditures will need to be decreased before the end of the
A38: year (shifting of expenditures to another fund), or a
A39: combination of the two.
A41: =CONCATENATE("So, let's look to see if any of your ",inputPrYr!D5-1," expenditures can") -> So, let's look to see if any of your 2012 expenditures can
A42: be reduced or eliminated. For example, are you showing any
A43: transfers from this fund to another? If so, consider whether
A44: you can reduce or eliminate one or more transfers.
A46: =CONCATENATE("Additionally, do your ",inputPrYr!D5-1," receipts contain a reimbursement") -> Additionally, do your 2012 receipts contain a reimbursement
A47: (e.g. FEMA)? If so, instead of showing the reimbursement as a
A48: receipt, show the reimbursement as a negative expenditure.
A50: Another option for you to consider is the shifting of
A51: expenditures from this fund to another fund. Again, the
A52: fund to which expenditures are shifted must have available
A53: cash and budget authority in order to absorb the additional
A54: expenditures.
A56: The shifting of expenditures between funds, as described in
A57: the preceding paragraph, can be accomplished between any funds
A58: that share expenses.
A60: On the revenue side of the fund you might increase your
A61: receipts through one or more transfers, contingent upon
A62: available cash, budget authority, and statutory authority for
A63: the transfer from the fund or funds from which one or
A64: more transfers might be made.
A66: A sometimes overlooked option is to use your general
A67: fund to cover the excess expenditures, assuming that the
A68: general fund is not the one that's in trouble and that it
A69: has the budget authority and cash to absorb additional
A70: expenditures.
A72: Thank you.

Sheet Tab E
A3: Proposed Budget Year - Possible Budget Law Violation
A4: No Levy Funds
A7: Welcome. You have been directed to this tab because your
A8: =CONCATENATE("estimated ",inputPrYr!D5," 'total expenditures' exceed your ",inputPrYr!D5,"") -> estimated 2013 'total expenditures' exceed your 2013
A9: Unemcumbered cash balance Dec 31.'
A11: In short, you are looking at a budget law violation if you
A12: adopt a budget in which there exists a fund with a negative
A13: ending cash balance.
A15: Should this be fixed before we adopt the budget?
A17: Yes. The budget law mandates that fund expenditures
A18: shall balance with anticipated revenue. A fund ending
A19: cash balance should end either in $0 or a positive cash
A20: balance.
A22: How do I fix the violation?
A24: The negative cash balance can be remedied by increasing
A25: the anticipated receipts or by reducing the proposed
A26: expenditures, or a combination of the two.
A28: Is there a benefit to having a positive cash balance?
A30: If the municipality governing body chooses to adopt a
A31: budget whereby the no levy fund has a positive ending
A32: balance, that's okay. But, we recommend that the fund
A33: be budgeted to end with a $0 balance.
A35: Why? Well, remember that no levy funds do not result in a
A36: levy of property tax dollars. So, there is no impact to the
A37: property taxpayer from a budget which utilizes all anticipated
A38: revenue in the upcoming year.
A40: The advantage to the municipality of budgeting the no levy fund
A41: to end the budget year with a $0 balance is that it provides
A42: the municipality with maximum spending authority. In
A43: the event the municipality is faced with unanticipated
A44: spending during the budget year it will not need to amend
A45: its budget to do so.
A47: Of course, by budgeting to $0 the municipality does not have
A48: to spend down to $0, but the authority to do so
A49: without a budget amendment is there in the event that a need
A50: to do so should arise.
A52: Thank you.

Sheet Mill Rate Computation
B6: How To Compute The Value of One Mill, And The Impact Of Tax Dollars And Assessed Valuation On Mill Rates
B7: * * * * *
B8: To Compute the Value of One Mill
B10: Example #1 and Formula
B12: This example allows you to compute a mill rate. Simply input in the green area the total assessed valuation for your municipality.
B14: Formula:
B16: Assessed valuation = X
B17: X / 1000 = value of one mill
B19: Computation of Example: $312,000,000 (assessed valuation) / 1000 = $312,000 (value of one mill)
B21: In this example, one mill for the municipality will generate $312,000 in taxes.
B23: Input the assessed valuation: | E23: = | F23: 312000000
C25: =F23 -> 312000000 | E25: / | F25: 1000 | G25: = | H25: =F23/F25 -> 312000
B27: Formula:
B28: =F23 -> 312000000 | C28: (assessed valuation) | E28: / | F28: 1000 | G28: = | H28: =B28/F28 -> 312000 | I28: (value of one mill)
B30: * * * * *
B31: To Determine a Mill Rate Increase
B33: Example #2 and Formula
B35: Example #2 allows you to compute the impact on mill rate by a specific dollar amount of property tax. This example might be useful at a budget hearing when the governing body is making small adjustments to one or more property tax funds and would like to know the impact of those changes on the total mill rate. As with the first example, input the municipality's total assessed valuation in the first green box, and with the second green box input the amount of property tax dollars under consideration.
B37: Computation of Example:
B39: The first step is to determine the value of one mill:
C41: 312000000 | E41: / | F41: 1000 | G41: = | H41: =C41/F41 -> 312000
B43: In the next step, we will determine the increase:
B45: $50,000 (increased property tax) / $312,000 (mill value) = .160 increase to the mill rate
B47: Formula:
B48: 312000000 | D48: (asd. val.) | E48: / | F48: 1000 | G48: = | H48: =B48/F48 -> 312000 | I48: (value one mill)
B50: 50000 | C50: (property tax) | E50: / | F50: =H48 -> 312000 | G50: (mill value) | I50: = | J50: =B50/F50 -> 0.1602564103
I51: (mill rate increase)
B52: * * * * *
B53: Impact of a Property Tax Increase on a $100,000 Home
B55: Example #3a and Formula
B57: Example #3a allows you to quickly compute the standard "impact of a property tax increase on a $100,000 home" (or any other residential property value, for that matter). Using the same information as in example #2, the additional piece of information to input in this example is a residential property value. Additionally, residential property is assessed at 11.5% of its value (K.S.A. 79-1439(b)(1)(A)).
B59: Computation of Example:
B61: The first step is to determine the mill rate:
B62: $312,000,000 / 1000 = $312,000 (example #1)
B63: $50,000 / $312,000 = .160 mills (example #2)
B65: The second step is to determine the residential property assessed value:
B66: $100,000 home x .115 = $11,500 (assessed value)
B68: The last step is to determine the property tax increase:
B69: $11,500 (assessed value) x .160 (mill rate) / 1000 = $1.84
B70: The increase in property tax for a $100,000 home will be $1.84
B72: Formula:
C73: (assessed valuation)
B74: First Step: | C74: 312000000 | E74: / | F74: 1000 | G74: = | H74: =C74/F74 -> 312000 | I74: (value of 1 mill)
C76: (increased prop. tax) | F76: (value of 1 mill)
B77: Second Step: | C77: 50000 | E77: / | F77: =H74 -> 312000 | G77: = | H77: =C77/F77 -> 0.1602564103 | I77: (increase mill rate)
C79: (value of the home)
B80: Third Step: | C80: 100000 | E80: x | F80: 0.115 | G80: = | H80: =C80*F80 -> 11500 | I80: (assessed value)
C82: (assessed value) | F82: (increase mill rate) | J82: (increase tax)
B83: Result: | C83: =H80 -> 11500 | E83: x | F83: =H77 -> 0.1602564103 | G83: / | H83: 1000 | I83: = | J83: =C83*F83/H83 -> 1.842948718
B85: * * * * *
B86: Impact of a Property Tax Increase on Unimproved Ag Land
B88: Example #3b and Formula
B90: Example #3b uses the same computation as example #3a, except in this case we are computing the impact of property taxes on unimproved agricultural land. Unimproved agricultural land is assessed at 30% pursuant to K.S.A. 79-1439(b)(1)(B)).
B92: Formula:
C93: (assessed valuation)
B94: First Step: | C94: 312000000 | E94: / | F94: 1000 | G94: = | H94: =C94/F94 -> 312000 | I94: (value of 1 mill)
C96: (increased prop. tax) | F96: (value of 1 mill)
B97: Second Step: | C97: 50000 | E97: / | F97: =H94 -> 312000 | G97: = | H97: =C97/F97 -> 0.1602564103 | I97: (increase mill rate)
C99: (value of the property)
B100: Third Step: | C100: 2500000 | E100: x | F100: 0.3 | G100: = | H100: =C100*F100 -> 750000 | I100: (assessed value)
C102: (assessed value) | F102: (increase mill rate) | J102: (increase tax)
B103: Result: | C103: =H100 -> 750000 | E103: x | F103: =H97 -> 0.1602564103 | G103: / | H103: 1000 | I103: = | J103: =C103*F103/H103 -> 120.1923077
B105: * * * * *
B106: Impact of a Property Tax Increase on Commercial, Industrial, Railroad, and Improved Ag Land
B108: Example #3c and Formula
B110: Example #3c uses the same computation as examples #3a and #3b, except in this case we are computing the impact of property taxes on commercial, industrial, railroad, and improved agricultural land. The foregoing categories of land are assessed at 25% pursuant to K.S.A. 79-1439(b)(1)(F)).
B112: Formula:
C113: (assessed valuation)
B114: First Step: | C114: 312000000 | E114: / | F114: 1000 | G114: = | H114: =C114/F114 -> 312000 | I114: (value of 1 mill)
C116: (increased prop. tax) | F116: (value of 1 mill)
B117: Second Step: | C117: 50000 | E117: / | F117: =H114 -> 312000 | G117: = | H117: =C117/F117 -> 0.1602564103 | I117: (increase mill rate)
C119: (value of the property)
B120: Third Step: | C120: 2500000 | E120: x | F120: 0.25 | G120: = | H120: =C120*F120 -> 625000 | I120: (assessed value)
C122: (assessed value) | F122: (increase mill rate) | J122: (increase tax)
B123: Result: | C123: =H120 -> 625000 | E123: x | F123: =H117 -> 0.1602564103 | G123: / | H123: 1000 | I123: = | J123: =C123*F123/H123 -> 100.1602564
B125: * * * * *
B126: Impact of Total Mills on an Individual Home
B128: Example #4 and Formula
B130: To compute the impact of all mills to be levied against a specific home valuation, simply key in the "value of the home" green area with the home valuation, and the total mill rate in the "total mill rate" green area (number at bottom of 'Estimate Tax Rate' column on the budget summary page). Remember, a computation using the above described information does not take into account taxes that may be levied by other municipalities.
B132: Formula:
C133: (value of the home) | F133: (residential %) | H133: (assessed value)
B134: First Step: | C134: 100000 | E134: x | F134: 0.115 | G134: = | H134: =C134*F134 -> 11500
C136: (assessed value) | F136: (total mill rate) | J136: (impact, total mills)
B137: Second Step: | C137: =H134 -> 11500 | E137: x | F137: 52.869 | G137: / | H137: 1000 | I137: = | J137: =C137*F137/H137 -> 607.9935
B139: * * * * *
B140: How to Achieve the Same Mill Rate as the Year Before
B142: Example #5 and Formula
B144: Maybe your governing body wants the budget to have the same mill rate as the year before. This is not an unusual goal of municipality governing bodies. To do so simply key in the desired mill rate in the first green box, the preliminary total assessed valuation in the second green box, and hit "enter." The result will be the amount in dollars that you must levy (total of all tax levy funds) in your proposed budget.
B146: Formula:
C147: (desired mill rate) | F147: (total assd. valuation) | J147: (total taxes levied)
C148: 52.869 | E148: x | F148: 312000000 | G148: / | H148: 1000 | I148: = | J148: =C148*(F148/1000) -> 16495128

Sheet Helpful Links
A1: Helpful Links
A3: Municipal Services (Kansas Department of Administration, Accounts and Reports) – Budget forms, confirmation of payments, transfer statutes, non-budgeted fund statutes, etc.
A4: http://www.da.ks.gov/ar/muniserv/
A7: State Debt Setoff Program (Kansas Department of Administration, Accounts and Reports) – Passive collection tool to assist municipalities with collection of unpaid utility bills, etc.
A8: http://www.da.ks.gov/ar/setoff/
A11: League of Kansas Municipalities – City-County Highway Fund estimates
A12: http://www.lkm.org/resources/budgettips/
A15: League of Kansas Municipalities – Directory of Kansas Public Officials
A16: http://www.lkm.org/publications/dokpopop.html
A19: Kansas Legislature – Kansas Statutes (usually updated in January), House and Senate Bills, etc.
A20: http://www.kslegislature.org/legsrv-statutes/index.do
A23: Kansas Attorney General Opinions
A24: http://ksag.washburnlaw.edu/
A27: Kansas State Treasurer – Municipal Distributions
A28: http://www.kansasstatetreasurer.com/prodweb/dist/index.php
A31: Kansas Department of Revenue
A32: http://www.ksrevenue.org/
A35: Kansas Department of Revenue – Property Valuation
A36: http://www.ksrevenue.org/pvd.htm
A39: Kansas Pooled Money Investment Board – Investment of Idle Funds in the Municipal Investment Pool
A40: https://www.pooledmoneyinvestmentboard.com/

Sheet legend
A1: The following were changed to this spreadsheet on 2/2/12
A2: 1. Instruction tab - line A7 add Library
A3: 2. Instruction tab - add line #1c for ad valorem adjustments
A4: 3. Instruction tab - add line #3b to indicate latest date for printing
A5: 4. Instruction tab - add line #10 to explain about Library Grant Tab
A6: 5. Instruction tab - add line #11a concerning changing the general fund page number due to library grant page
A7: 6. Instruction tab - changed 11b, c, and d for new fund tables on fund pages, and 13b, c, and d for tables on Summary
A8: 7. InputPrYr tab - add Library to the fund page list
A9: 8. InputPrYr tab - added new table for adjusting ad valorem taxes if desired
A10: 9. InputOth tab - under 'Computation of Delinquency', changed both narratives for %
A11: 10. InputBudSum tab - added line D9 for latest date for printing and added hidden formulas for latest printing date
A12: 11. InputBudSum tab - added spaces for official name and title
A13: 12. Cert tab - added to 'Table of Contents' the Computation to Determine Library Grant and its page number
A14: 13. Cert tab - added Library fund
A15: 14. Cert tab - added place for "Email" address for person assitance on the budget
A16: 15. Mvalloc tab - removed 'Slider' from table heading
A17: 16. Mvalloc tab - removed slider column and under lying formulas
A18: 17. Mvalloc tab - added Library fund
A19: 18. TransfersStatutes tab - added KSA 80-1406c
A20: 19. Debt-Lease tab - minor changes to first column heading and center form for printing
A21: 20. Library Grant was added which computes if library qualifies for a grant
A22: 21. Gen tab - added an if statement to page number to account for Library Grant page
A23: 22. DebtSvs-Library tab - reduce debt service fund page and added new library fund page which is linked to Grant tab
A24: 23. Summ tab - added library fund and linked the library fund page to the summary
A25: 24. Summ tab - linked the official name and title from the inputbudsum page
A26: 25. Summ tab - centered the heading for printing
A27: 26. Nhood tab - added the library fund
A28: 27. Mill Rate Computation tab - corrected the computations to agree with our web site
A29: 28. All fund pages - changed the year headings
A30: 29. All fund pages - removed slider and its link
A32: The following were changed to this spreadsheet on 5/13/11
A33: 1. Road tab cell c54 change ref from h1 to e1 so the Special Machinery date will reflect correctly
A35: The following were changed to this spreadsheet on 5/4/11
A36: 1. Gen tab cell B46 corrected the spelling of Resources
A38: The following were changed to this spreadsheet on 4/19/11
A39: 1. Summ tab changed proposed year expenditure column to 'Budget Authority for Expenditures'
A41: The following were changed to this spreadsheet on 3/21/11
A42: 1. General tab corrected cell G52 from E22 to E26
A43: 2. Debt Service tab corrected cell G55 from E42 to E29
A45: The following were changed to this spreadsheet on 10/13/10
A46: 1. All pages removed the revision date
A47: 2. All tax levy fund pages reduced the columns and revised the bottom of pages for see tabs
A48: 3. Instruction tab added lines 11c (last year mill rate), 11d (desired mill rate), 10a(project carryover), 10b (Desired Carryover), 10g (project carryover Debt/road, and 14 (protection)
A49: 4. Certificate tab change the 'Expenditure' heading by adding 'Budget Authority for Expenditures'
A50: 5. Certificate tab add the year in the block for 'County Clerk Use Only'
A51: 6. Gen tab added table for 'Projection of Cash Carryover'
A52: 7. Gen tab added table for 'Desired Carryover'
A53: 8. Gen tab redefine print que to not include tables
A54: 9. Gen tab hid the comp for see tabs
A55: 10. DebtService tab added table for 'Projected Carryover'
A56: 11. DebtService tab redefine print que and hid comp for see tabs
A57: 12. Levy page9 and page10 tab hid comp for see tabs
A58: 13. Summ tab merged cells above the 'Township Officer' and center a name if used
A59: 14. Summ tab changed proposed year expenditure column to 'Budget Authority (Includes Carryover)
A60: 15. Summ tab added four tables to the right of the form
A61: 16. Revised TransferStatutes and NonBudFunds tabs
A62: 17. Added Mill Rate Computation tab
A63: 18. Summ tab redefine print que
A64: 19. Add Helpful Links tab
A65: 20. Certificate page deleted state block
A66: 21. Inputoth tab changed Actual Delinquency tax from -2 to -3
A67: 22. All tax levy fund pages, changed 'Fund Page' to 'Fund Page for Funds with a Tax Levy'
A68: 23. Remove w-2 infro from certificate page
A70: The following were changed to this spreadsheet on 4/15/10
A71: 1. Changed schedule of transfers statute column to allow for statute to pop-up if transfers are shown in current/proposed columns
A73: The following were changed to this spreadsheet on 1/05/10
A74: 1. Instruction tab added line 7b concerning schedule of transfers adjustments
A75: 2. Transfers tab changed note so to identify current and proposed columns for non-budgeted funds transfers
A76: 3. Transfers tab changed first two column heading adding 'expenditures' and 'receipts'
A78: The following were changed to this spreadsheet on 12/28/09
A79: 1. Nhood tab added note for computing table
A81: The following were changed to this spreadsheet on 12/08/09
A82: 1. Instruction tab, added step 3 for 'inputBudSum'
A83: 2. Added tab 'inputBudSum'
A84: 3. Changed Budget Summary replacing the green areas for date/time/location so info comes from inputBudSum tab
A85: 4. Bud Summary delete a space and combine sentences 'Detail…' and 'and will' for where budget infor located at
A87: The following were changed to this spreadsheet on 8/25/09
A88: 1. Cert tab line 14, added 'If amended….'
A89: 2. Mvalloc tab changed reference from 'D' to 'E' in each cell of table
A90: 3. Transfer tab line 13, changed General/Road to Road/Special Machinery
A91: 4. Transfer tab changed second statute reference from 80-1406b to 80-122
A92: 5. TransferStatute tab created
A93: 6. Instructions tab added 6c for the TransferStatute tab
A94: 7. Instruction tab added 9m to explain about Non-Budgeted Form
A95: 8. Cert tab added Non-Budgeted Funds line A35
A96: 9. Added nonbud tab for the Non-Budgeted Funds
A97: 10. Summ tab added A34 for Non-Budgeted Funds
A98: 11. Added Tabs A to E for violations
A99: 12. Changed each fund page taking out the 'Yes' and 'No' and replacing them with See Tab when a possible violation occurrs
A100: 13. NonBud tab changed Net Vaulation to July 1
A101: 14. Certificate tab moved the Assisted By: and added more lines for governing body signatures
A102: 15. Created NonBudFunds tab
A104: The following were changed to this spreadsheet on 5/14/09
A105: 1. Mvalloc tab, changed cell d10 to -2 vs -1 to reflect correct year to tax
A106: 2. Mvalloc tab, changed cells d12-21 to add = in formula to prevent VALUE error - affects very few townships
A108: The following were changed to this spreadsheet on 5/13/09
A109: 1. Transfer tab, changed cells c12, d12, and e12 to reflect link on the gen tab transfer from 43 to 45
A111: The following were changed to this spreadsheet on 5/5/09
A112: 1. Summ tab, the special machinery's expenditure block B34 link was changed from C63 to B63
A114: The following were changed to this spreadsheet on 4/3/09
A115: 1. Corrected mvalloc column d for ad valorem tax as was picking up expenditures instead
A116: 2. Corrected gen unencumbered cash balances for both actual and current columns
A118: The following were changed to this spreadsheet on 3/19/09
A119: 1. Certificat page changed fund name from Bond & Interest to Debt Service
A120: 2. Debt Service fund page name from Bond & Interest to Debt Service
A121: 3.Budget Summary changed fund name from Bond & Interest to Debt Service
A123: The following were changed to this spreadsheet on 2/23/09
A124: 1. Instruction under Submitting of Budget ….required electronic submission.
A125: 2. Input other tab line 45 change from Budget Summary to Budget Certificate.
A127: The following were changed to this spreadsheet on 2/02/09
A128: 1. General fund cell c51formula changed to calulate the Unecumber Cash Balance correctly.
A130: The following were changed to this spreadsheet on 10/14/2008
A131: 1. Input tab (inputPrYr) added column for the current year expenditures.
A132: 2. Added to all tax levy fund pages the miscellaneous receipt for the proposed year comparison takes into account the ad valorem taxes for the 10% Rule.
A133: 3. All tax levy funds and no tax levy funds fund pages made the following changes:
A134: 3a. Made the total expenditures block for the actual and current year to turn 'Red' if violation occurs.
A135: 3b. Unencumbered Cash for the actual year turn 'Red' if violation occurs.
A136: 3c. In statements about violations, if no violation occurs, then a red 'No' will appear.
A137: 4. All tax levy fund pages abbreviated the non-appropriated, total expenditures/non-appropriated, and delinquency computation rate.
A138: 5. All no tax levy fund pages added to the proposed column unencumbered cash balance block will turn red and below will say in red 'Budget Violation' if the cash balance is negative.
A139: 6. Neighborhood Revitalization (nhood) took off the protection for the page number and made the estimate rebate round the figures to whole dollars.
A140: 7. Instruction page have changed all reference for Bond & Interest to Debt Service.
A141: 8. Added to the instruction page lines 11a - 11c to provide a little more insight for the Neighborhood Revitalization rebate.
A142: 9. Added instruction line 2b to explain how to delete delinquency rate from tax levy fund pages.
A143: 10. Changed the Bond & Interest tab (B&I) to Debt Service tab (DebtService).
A144: 11. Changed the revised date on all pages changed.
A145: 12. Added instruction lines 9g to 9l for additional edits for budget authority.
A146: 13. Allow the General Fund transfer of 25% to Special Machinery to include ad valorem taxes into the computation of the 25% limitation in the proposed column.
A147: 14. If road transfer funds to special machinery, the transfers are linked and to the Schedule of Transfers.
A148: 14a. Road transfer is checked to see if exceeds 25%, if so, then block turns red and below statement will appear 'Exceeds 25%'.
A149: 14b. Special Machinery also has error message 'Exceeds 25% of Resources Available'.
A150: 14c. Schedule of Transfer has the transfers link and will show statute allowing for the transfer for actual year only.
A151: 15. Added transfers on the general fund page and questions pertaining to the transfers.
A152: 15a. The first transfer checks for if ad valorem taxes were levied. If so, then transfer block turns red and error message 'Not Authorized' appears.
A153: 15b. Second transfer checks to see if exceeds 25% limitation. If so, then transfer block turns red and error message 'Exceeds 25%' appears.
A154: 15c. Transfers are linked from general fund to special machinery and to Schedule of Transfers. Transfers for actual year will also have the statute reference shown.
A155: 16. Error messages will appear next to transfers for the special machinery transfers from the general fund if both transfer blocks indicate a transfer. A error message will appear 'Not Authorized Two Transfers - Only One'
A156: 17. Deleted lines pertaining to the beginning and ending balance for the County Treasurer.
A158: The following were changed to this spreadsheet on 8/06/2007
A159: 1. instruction were changed: POC change from Roger to armunis, got rid about us providing disk, took the input page and split to input prior budget information and input other, with more in-depth of forms and fund page, and more in-depth on the budget summary page.
A160: 2. All pages have a revision date.
A161: 3. Hard coded the Bond & Interest, and Road on Certificate and Summary pages.
A162: 4. All dates on the spreadsheet are controlled from input on the input Prior Year page.
A163: 5. Computation to Determine Limit now has the debts amounts link within the spreadsheet.
A164: 6. Schedule of Transfers have the transfers totaled and link to the budget summary page.
A165: 7. Now have the indebtedness prior year added to the input page and link with the budget summary page.
A166: 8. Added LAVTR and Slider to the input page and to the General Fund page.
A167: 9. Changed the Budget Summary Heading to include Actual/Estimate/Proposed with the budget year.
A168: 10. Changed the delinquency rate formula for all levy funds.
A169: 11. Changed the Certificate page so the county name flows instead of having unneeded spaces.
A170: 12. Using the actual ad valorem rates from the Clerk's information versus from the Certificate page.
A171: 13. Delinquency rate for actual for 3 decimal and note that rate can be up to 5% over the actual rate.
A172: 14. Added column to show when debt retired on the Indebtedness page.
A173: 15. Budget Summary changed the sentence "will meet…" so the year automatically changes.
A174: 16. Resolution page has a space for a page number.
A175: 17. Added to instructions about non-appropriated funds limit of 5%.
A176: 18. Added warning "Exceeds 5%" on all fund pages for the non-appropriated balance.
A177: 19. Added Neighborhood Revitalization table and linked the tax levy fund pages.
A178: 20. Added Neighborhood Revitalization expenditures to all the tax levy fund pages.
A179: 21. Added Neighborhood Revitalization page number to the Certificate page table of content.
A180: 22. Added Slider to the Vehicle Allocation table and linked to fund pages.
A181: 23. Added to all budgeted fund pages the budget authority for the actual year, budget violation, and cash violation.
A182: 24. Added instruction on the addition for item 23.
A183: 25. Link the Road fund transfer to Special Machinery fund and check for exceeding 25%.
A184: 26. Added 'miscellaneous' category to the receipt/expenditure for all fund pages and set error message.
A185: 27. Added to the instruction about correct the error message for the miscellaneous.
A186: 28. Added 9a to the instruction to explain about County Treasurers Jan 1 and Dec 31 balances.
A187: 29. Added 'excluding oil, gas, and mobile homes' to lines 9 and 11 on Clerks budget info on tab inputoth.

Sheet SignCert

Sheet Publication
